Workbook

Sheet Sheet6

Sheet Sheet1
D2: welcome
L5: J

Sheet sheet5
E9: SWAMI VIVEKANAND SARASWATI VIDYA MANDIR
E11: Sector-3, rajendra nagar, sahibabad, ghaziabad, (U.P.)
E12: Ph.: (0120) 4132236, 4103538
E13: E-mail : swamivsvm@gmail.com
E14: Website : www.svsvm.org
E15: PERFORMANCE PROFILE
E17: CONTINUOS AND COMPREHENSIVE EVALUATION
E18: (Issued by School as per directives of Central Board of Secondary Education, Delhi)
E21: STUDENT PROFILE
F23: Roll no. | G23: 9546
F24: Name | G24: =VLOOKUP(G23,itsme,3,FALSE) -> GARIMA
F25: Class | G25: =VLOOKUP(G23,itsme,2,FALSE) -> IX-E
F26: D.O.B. | G26: =VLOOKUP(G23,itsme,7,FALSE) -> 17-11-02
F27: Mother's Name | G27: =VLOOKUP(G23,itsme,5,FALSE) -> Mrs. Neetu ojha
F28: Father's Name | G28: =VLOOKUP(G23,itsme,4,FALSE) -> MR. deepak gupta
F29: Telephone No. | G29: =VLOOKUP(G23,itsme,6,FALSE) -> 8287343939
E31: ACADEMIC PERFORMANCE
E33: S.No. | F33: Subjects | G33: TERM - I | J33: TERM - II
G34: FA 1 | H34: FA 2 | I34: SA 1 | J34: FA 3 | K34: FA 4 | L34: SA2
E35: 1 | F35: ENGLISH | G35: =VLOOKUP(G23,mydata,4,FALSE) -> C1 | H35: =VLOOKUP(G23,mydata,6,FALSE) -> C1 | I35: =VLOOKUP(G23,mydata,8,FALSE) -> A2 | J35: =VLOOKUP(G23,mydata,10,FALSE) -> B1 | K35: =VLOOKUP(G23,mydata,12,FALSE) -> B2 | L35: =VLOOKUP(G23,mydata,14,FALSE) -> C2
E36: 2 | F36: HINDI | G36: =VLOOKUP(G23,mydata,17,FALSE) -> B1 | H36: =VLOOKUP(G23,mydata,19,FALSE) -> C1 | I36: =VLOOKUP(G23,mydata,19,FALSE) -> C1 | J36: =VLOOKUP(G23,mydata,23,FALSE) -> A2 | K36: =VLOOKUP(G23,mydata,25,FALSE) -> B2 | L36: =VLOOKUP(G23,mydata,27,FALSE) -> C1
E37: 3 | F37: MATHS | G37: =VLOOKUP(G23,mydata,30,FALSE) -> C1 | H37: =VLOOKUP(G23,mydata,32,FALSE) -> A2 | I37: =VLOOKUP(G23,mydata,34,FALSE) -> A2 | J37: =VLOOKUP(G23,mydata,36,FALSE) -> A2 | K37: =VLOOKUP(G23,mydata,38,FALSE) -> B2 | L37: =VLOOKUP(G23,mydata,40,FALSE) -> B2
E38: 4 | F38: SOCIAL STUDIES | G38: =VLOOKUP(G23,mydata,43,FALSE) -> C1 | H38: =VLOOKUP(G23,mydata,45,FALSE) -> B1 | I38: =VLOOKUP(G23,mydata,47,FALSE) -> A2 | J38: =VLOOKUP(G23,mydata,49,FALSE) -> B1 | K38: =VLOOKUP(G23,mydata,51,FALSE) -> B1 | L38: =VLOOKUP(G23,mydata,53,FALSE) -> C2
E39: 5 | F39: SCIENCE | G39: =VLOOKUP(G23,mydata,56,FALSE) -> B1 | H39: =VLOOKUP(G23,mydata,58,FALSE) -> A1 | I39: =VLOOKUP(G23,mydata,60,FALSE) -> D1 | J39: =VLOOKUP(G23,mydata,62,FALSE) -> C1 | K39: =VLOOKUP(G23,mydata,64,FALSE) -> A1 | L39: =VLOOKUP(G23,mydata,66,FALSE) -> A2
E40: 6 | F40: COMPUTER | G40: =VLOOKUP(G23,mydata,69,FALSE) -> B1 | H40: =VLOOKUP(G23,mydata,71,FALSE) -> B1 | I40: =VLOOKUP(G23,mydata,73,FALSE) -> A2 | J40: =VLOOKUP(G23,mydata,75,FALSE) -> D1 | K40: =VLOOKUP(G23,mydata,77,FALSE) -> B1 | L40: =VLOOKUP(G23,mydata,79,FALSE) -> A1

Sheet Sheet2
A7: SR. NO. | B7: Class | C7: NAME | D7: FATHER'S NAME | E7: MOTHER'S NAME | F7: CONTACT NUMBER | G7: D.O.B.
A8: 9501 | B8: IX-E | C8: ESHA SHARMA | D8: MR. Rajkumar sharma | E8: Mrs. Hemlata | F8: 8826983942 | G8: 2002-11-06
A9: 9502 | B9: IX-E | C9: POONAM | D9: MR. suresh | E9: Mrs. Savita | F9: 9540022160 | G9: 14-11-02
A10: 9503 | B10: IX-E | C10: SHIVANI BHOWRA | D10: MR. satender | E10: Mrs. suman | F10: 8826700416 | G10: 19-05-02
A11: 9504 | B11: IX-E | C11: SWATI | D11: MR. Nitesh | E11: Mrs. Veermala | F11: 9971659827 | G11: 14-11-03
A12: 9505 | B12: IX-E | C12: KRITI | D12: MR. D.K. Vishwakarma | E12: Mrs. Ruchi | F12: 9818847815 | G12: 15-06-02
A13: 9506 | B13: IX-E | C13: NEETU | D13: MR. kallu | E13: Mrs. Reetu | F13: 9810233765 | G13: 2002-03-06
A14: 9507 | B14: IX-E | C14: SHREYA | D14: MR. umesh singh | E14: Mrs. Seema Singh | F14: 9990908455 | G14: 2003-06-11
A15: 9508 | B15: IX-E | C15: HIMANSHI | D15: MR. Vijendra singh negi | E15: Mrs. Devki Negi | F15: 7838977491 | G15: 2002-02-02
A16: 9510 | B16: IX-E | C16: TANIYA CHAUHAN | D16: MR. Viren | E16: Mrs. Vimla | F16: 9958416517 | G16: 2000-05-02
A17: 9511 | B17: IX-E | C17: LOVELY | D17: MR. ramzan ali | E17: Mrs. Shariphan | F17: 9560356583 | G17: 2002-08-12
A18: 9512 | B18: IX-E | C18: JAYA | D18: MR. sudhir K. mishra | E18: Mrs. Ranjana | F18: 9213704475 | G18: 2002-11-02
A19: 9513 | B19: IX-E | C19: BHAVNA | D19: MR. naresh singh chauhan | E19: Mrs. Sangeeta | F19: 921278242 | G19: 17-1-01
A20: 9514 | B20: IX-E | C20: POOJA | D20: MR. Narender | E20: Mrs. Saroj | F20: 9312116818 | G20: 16-01-03
A21: 9515 | B21: IX-E | C21: KRITIKA | D21: MR. sunil jain | E21: Mrs. Poonam | F21: 9953402194 | G21: 15-06-03
A22: 9516 | B22: IX-E | C22: NEERA | D22: MR. mohan kumar | E22: Mrs. Parag mittal | F22: 9810326695 | G22: 2003-04-04
A23: 9517 | B23: IX-E | C23: PRAGYA | D23: MR. surender bisht | E23: Mrs. Sakshi | F23: 9818411166 | G23: 2003-03-03
A24: 9518 | B24: IX-E | C24: SADAF | D24: MR. Mohd. Asif | E24: Mrs. Mussarat | F24: 9871871824 | G24: 14-09-02
A25: 9519 | B25: IX-E | C25: DIVYA KHARAKWAL | D25: MR. ram | E25: Mrs. suman | F25: 9999285167 | G25: 2001-05-11
A26: 9520 | B26: IX-E | C26: SIMRAN | D26: MR. jasveer | E26: Mrs. Reena | F26: 9818441575 | G26: 2001-12-12
A27: 9521 | B27: IX-E | C27: RITIKA | D27: MR. V.K. singh | E27: Mrs. Nisha | F27: 9910949523 | G27: 2002-08-09
A28: 9522 | B28: IX-E | C28: NITI | D28: MR. shyam | E28: Mrs. Saleena | F28: 9910862260 | G28: 23-10-01
A29: 9523 | B29: IX-E | C29: AMISHA | D29: MR. vinod rawat | E29: Mrs. Satakshi | F29: 8826231786 | G29: 2001-07-07
A30: 9524 | B30: IX-E | C30: GOPIKA | D30: MR. surender bisht | E30: Mrs. Kiran bisht | F30: 9555490046 | G30: 18-04-02
A31: 9525 | B31: IX-E | C31: MAHIMA | D31: MR. Rajesh mishra | E31: Mrs. Aradhana | F31: 9818022907 | G31: 18-09-01
A32: 9526 | B32: IX-E | C32: RAGINI | D32: MR. satish | E32: Mrs. Santosh | F32: 9891639511 | G32: 25-08-01
A33: 9527 | B33: IX-E | C33: SHRUTI | D33: MR. Narendar kumar | E33: Mrs. Neetu ojha | F33: 8010936990 | G33: 28-10-02
A34: 9528 | B34: IX-E | C34: SHAMA | D34: MR. Salim | E34: Mrs. Saira | F34: 9811136586 | G34: 21-07-02
A35: 9529 | B35: IX-E | C35: KOMAL | D35: MR. Mohan chandra pathak | E35: Mrs. Kanchan pathak | F35: 9711035858 | G35: 13-09-02
A36: 9530 | B36: IX-E | C36: KARTIKA | D36: MR. Jagmohan sharma | E36: Mrs. Susheela | F36: 8588851237 | G36: 14-11-02
A37: 9531 | B37: IX-E | C37: RAFIYA | D37: MR. Alim saifi | E37: Mrs. sangeeta | F37: 9310101745 | G37: 2002-12-12
A38: 9532 | B38: IX-E | C38: SHALINI | D38: MR. vikram singh | E38: Mrs. Seema | F38: 8800978241 | G38: 29-10-01
A39: 9533 | B39: IX-E | C39: ANUSHKA | D39: MR. Digamber singh negi | E39: Mrs. Suman | F39: 9910499721 | G39: 24-05-03
A40: 9534 | B40: IX-E | C40: RIYA CHAUDHARY | D40: MR. Rajendra chaudhary | E40: Mrs. Pinki | F40: 9926458211 | G40: 24-01-04
A41: 9535 | B41: IX-E | C41: GAURI | D41: MR. Rohit chauhan | E41: Mrs. Rinky | F41: 9899242842 | G41: 2002-12-11
A42: 9536 | B42: IX-E | C42: ADITI | D42: MR. sunil kumar | E42: Mrs. Hema | F42: 9910792501 | G42: 17-09-00
A43: 9537 | B43: IX-E | C43: CHANCHAL BHOWRA | D43: MR. Anil kumar | E43: Mrs. Rekha | F43: 7838089975 | G43: 2002-07-02
A44: 9538 | B44: IX-E | C44: SONAL | D44: MR. veer | E44: Mrs. Sareeta | F44: 9210306213 | G44: 2002-10-03
A45: 9539 | B45: IX-E | C45: TANYA GUPTA | D45: MR. deepak gupta | E45: Mrs. Neelam gupta | F45: 7011482955 | G45: 15-03-02
A46: 9540 | B46: IX-E | C46: AKANSHA | D46: MR. deepak gupta | E46: Mrs. Seema | F46: 9654565874 | G46: 27-10-00
A47: 9541 | B47: IX-E | C47: KARISHMA | D47: MR. rinku singh | E47: Mrs. Rakeha Devi | F47: 8595237386 | G47: 18-04-03
A48: 9542 | B48: IX-E | C48: ALFISHA | D48: MR. rounak khan | E48: Mrs. Rasheeda khan | F48: 7503346780 | G48: 2002-10-11
A49: 9543 | B49: IX-E | C49: KHUSHI | D49: MR. Kuldeep singh | E49: Mrs. Shanti | F49: 9582104114 | G49: 19-10-02
A50: 9544 | B50: IX-E | C50: ANKITA | D50: MR. vikram singh | E50: Mrs. Saroj | F50: 8510818415 | G50: 24-04-03
A51: 9545 | B51: IX-E | C51: KAREENA | D51: MR. Balkishan | E51: Mrs. Saroj | F51: 9891682203 | G51: 21-04-02
A52: 9546 | B52: IX-E | C52: GARIMA | D52: MR. deepak gupta | E52: Mrs. Neetu ojha | F52: 8287343939 | G52: 17-11-02
A53: 9547 | B53: IX-E | C53: JHALAK | D53: MR. Titu | E53: Mrs. Salita | F53: 8595343739 | G53: 19-12-02
A54: 9548 | B54: IX-E | C54: ANJALI | D54: MR. tushar | E54: Mrs. Sonika | F54: 9818846795 | G54: 2002-01-05
A55: 9549 | B55: IX-E | C55: NIDHI | D55: MR. kamlesh | E55: Mrs. Sonia | F55: 8312042681 | G55: 28-02-02
A56: 9550 | B56: IX-E | C56: NAMRATA | D56: MR. Chandrakant Pandey | E56: Mrs. Kamla | F56: 9822553162 | G56: 2001-09-10
A57: 9551 | B57: IX-E | C57: DIVYA TYAGI | D57: MR. Pradeep tyagi | E57: Mrs. Sunita tyagi | F57: 9971100446 | G57: 20-03-02
A58: 9552 | B58: IX-E | C58: PARUL | D58: MR. Rajbeer singh | E58: Mrs. Birmla | F58: 9999646185 | G58: 2001-05-02
A59: 9553 | B59: IX-E | C59: MUSKAN | D59: MR. Akbar | E59: Mrs. Kalsum | F59: 8053828238 | G59: 24-09-03
A60: 9554 | B60: IX-E | C60: SHRUTI | D60: MR. Ramkishan | E60: Mrs. Kanchan | F60: 9871389259 | G60: 16-10-01
A61: 9556 | B61: IX-E | C61: TWINKLE | D61: MR. Channu singh | E61: Mrs. Asha devi | F61: 9924861234 | G61: 18-10-03
A62: 9557 | B62: IX-E | C62: SAKSHI | D62: Mr. Ajay kumar | E62: Mrs. Reeta bharti | F62: 9643161762 | G62: 2002-03-06

Sheet Sheet3
C2: Gazette
A7: sr no. | B7: Student's name | C7: ENGLISH | P7: HINDI | AC7: MATHS | AP7: SOCIAL STUDIES | BC7: science | BP7: computer
C8: FA 1 | E8: FA2 | G8: SA 1 | I8: FA3 | K8: FA 4 | M8: SA 2 | P8: FA 1 | R8: FA 2 | T8: SA 1 | V8: FA 3 | X8: FA 4 | Z8: SA 2 | AB8: TOTAL MARKS | AC8: FA 1 | AE8: FA 2 | AG8: SA 1 | AI8: FA 3 | AK8: FA 4 | AM8: SA 2 | AP8: FA 1 | AR8: FA 2 | AT8: SA 1 | AV8: FA 3 | AX8: FA 4 | AZ8: SA 2 | BC8: FA 1 | BE8: FA 2 | BG8: SA 1 | BI8: FA 3 | BK8: FA 4 | BM8: SA 2 | BP8: FA 1 | BR8: FA 2 | BT8: SA 1 | BV8: FA 3 | BX8: FA 4 | BZ8: SA 2
C9: marks | D9: grade | E9: marks | F9: grade | G9: marks | H9: grade | I9: marks | J9: grade | K9: marks | L9: grade | M9: marks | N9: grade | O9: TOTAL MARKS | P9: marks | Q9: grade | R9: marks | S9: grade | T9: marks | U9: grade | V9: marks | W9: grade | X9: marks | Y9: grade | Z9: marks | AA9: grade | AC9: marks | AD9: grade | AE9: marks | AF9: grade | AG9: marks | AI9: marks | AK9: marks | AL9: grade | AM9: marks | AN9: grade | AO9: TOTAL MARKS | AP9: marks | AQ9: grade | AR9: marks | AS9: grade | AT9: marks | AU9: grade | AV9: marks | AW9: grade | AX9: marks | AY9: grade | AZ9: marks | BA9: grade | BB9: TOTAL MARKS | BC9: marks | BD9: grade | BE9: marks | BF9: grade | BG9: marks | BH9: grade | BI9: marks | BJ9: grade | BK9: marks | BL9: grade | BM9: marks | BN9: grade | BO9: TOTAL MARKS | BP9: marks | BQ9: grade | BR9: marks | BS9: grade | BT9: marks | BU9: grade | BV9: marks | BW9: grade | BX9: marks | BY9: grade | BZ9: marks | CA9: grade | CB9: TOTAL MARKS
A10: 9501 | B10: ESHA SHARMA | C10: 28 | D10: =IF(C10>45,"A1",IF(C10>40,"A2",IF(C10>35,"B1",IF(C10>30,"B2",IF(C10>25,"C1",IF(C10>20,"C2",IF(C10>15,"D1",IF(C10>10,"D2",IF(C10>5,"E1",IF(C10>0,"E2")))))))))) -> C1 | E10: 39 | F10: =IF(E10>45,"A1",IF(E10>40,"A2",IF(E10>35,"B1",IF(E10>30,"B2",IF(E10>25,"C1",IF(E10>20,"C2",IF(E10>15,"D1",IF(E10>10,"D2",IF(E10>5,"E1",IF(E10>0,"E2")))))))))) -> B1 | G10: 82 | H10: =IF(G10>80,"A1",IF(G10>70,"A2",IF(G10>60,"B1",IF(G10>50,"B2",IF(G10>40,"C1",IF(G10>30,"C2",IF(G10>20,"D1",IF(G10>10,"D2",IF(G10>0,"E1",IF(G10>0,"E2")))))))))) -> A1 | I10: 45 | J10: =IF(I10>45,"A1",IF(I10>40,"A2",IF(I10>35,"B1",IF(I10>30,"B2",IF(I10>25,"C1",IF(I10>20,"C2",IF(I10>15,"D1",IF(I10>10,"D2",IF(I10>5,"E1",IF(I10>0,"E2")))))))))) -> A2 | K10: 35 | L10: =IF(K10>45,"A1",IF(K10>40,"A2",IF(K10>35,"B1",IF(K10>30,"B2",IF(K10>25,"C1",IF(K10>20,"C2",IF(K10>15,"D1",IF(K10>10,"D2",IF(K10>5,"E1",IF(K10>0,"E2")))))))))) -> B2 | M10: 85 | N10: =IF(M10>80,"A1",IF(M10>70,"A2",IF(M10>60,"B1",IF(M10>50,"B2",IF(M10>40,"C1",IF(M10>30,"C2",IF(M10>20,"D1",IF(M10>10,"D2",IF(M10>0,"E1",IF(M10>0,"E2")))))))))) -> A1 | O10: =SUM(C10,E10,G10,I10,K10,M10) -> 314 | P10: 45 | Q10: =IF(P10>45,"A1",IF(P10>40,"A2",IF(P10>35,"B1",IF(P10>30,"B2",IF(P10>25,"C1",IF(P10>20,"C2",IF(P10>15,"D1",IF(P10>10,"D2",IF(P10>5,"E1",IF(P10>0,"E2")))))))))) -> A2 | R10: 39 | S10: =IF(R10>45,"A1",IF(R10>40,"A2",IF(R10>35,"B1",IF(R10>30,"B2",IF(R10>25,"C1",IF(R10>20,"C2",IF(R10>15,"D1",IF(R10>10,"D2",IF(R10>5,"E1",IF(R10>0,"E2")))))))))) -> B1 | T10: 78 | U10: =IF(T10>80,"A1",IF(T10>70,"A2",IF(T10>60,"B1",IF(T10>50,"B2",IF(T10>40,"C1",IF(T10>30,"C2",IF(T10>20,"D1",IF(T10>10,"D2",IF(T10>0,"E1",IF(T10>0,"E2")))))))))) -> A2 | V10: 39 | W10: =IF(V10>45,"A1",IF(V10>40,"A2",IF(V10>35,"B1",IF(V10>30,"B2",IF(V10>25,"C1",IF(V10>20,"C2",IF(V10>15,"D1",IF(V10>10,"D2",IF(V10>5,"E1",IF(V10>0,"E2")))))))))) -> B1 | X10: 45 | Y10: =IF(X10>45,"A1",IF(X10>40,"A2",IF(X10>35,"B1",IF(X10>30,"B2",IF(X10>25,"C1",IF(X10>20,"C2",IF(X10>15,"D1",IF(X10>10,"D2",IF(X10>5,"E1",IF(X10>0,"E2")))))))))) -> A2 | Z10: 86 | AA10: =IF(Z10>80,"A1",IF(Z10>70,"A2",IF(Z10>60,"B1",IF(Z10>50,"B2",IF(Z10>40,"C1",IF(Z10>30,"C2",IF(Z10>20,"D1",IF(Z10>10,"D2",IF(Z10>0,"E1",IF(Z10>0,"E2")))))))))) -> A1 | AC10: 41 | AD10: =IF(AC10>45,"A1",IF(AC10>40,"A2",IF(AC10>35,"B1",IF(AC10>30,"B2",IF(AC10>25,"C1",IF(AC10>20,"C2",IF(AC10>15,"D1",IF(AC10>10,"D2",IF(AC10>5,"E1",IF(AC10>0,"E2")))))))))) -> A2 | AE10: 34 | AF10: B2 | AG10: 64 | AH10: =IF(AG10>80,"A1",IF(AG10>70,"A2",IF(AG10>60,"B1",IF(AG10>50,"B2",IF(AG10>40,"C1",IF(AG10>30,"C2",IF(AG10>20,"D1",IF(AG10>10,"D2",IF(AG10>0,"E1",IF(AG10>0,"E2")))))))))) -> B1 | AI10: 28 | AJ10: =IF(AI10>45,"A1",IF(AI10>40,"A2",IF(AI10>35,"B1",IF(AI10>30,"B2",IF(AI10>25,"C1",IF(AI10>20,"C2",IF(AI10>15,"D1",IF(AI10>10,"D2",IF(AI10>5,"E1",IF(AI10>0,"E2")))))))))) -> C1 | AK10: 34 | AL10: =IF(AK10>45,"A1",IF(AK10>40,"A2",IF(AK10>35,"B1",IF(AK10>30,"B2",IF(AK10>25,"C1",IF(AK10>20,"C2",IF(AK10>15,"D1",IF(AK10>10,"D2",IF(AK10>5,"E1",IF(AK10>0,"E2")))))))))) -> B2 | AM10: 54 | AN10: =IF(AM10>80,"A1",IF(AM10>70,"A2",IF(AM10>60,"B1",IF(AM10>50,"B2",IF(AM10>40,"C1",IF(AM10>30,"C2",IF(AM10>20,"D1",IF(AM10>10,"D2",IF(AM10>0,"E1",IF(AM10>0,"E2")))))))))) -> B2 | AO10: 255 | AP10: 22 | AQ10: C2 | AR10: 39 | AS10: =IF(AR10>45,"A1",IF(AR10>40,"A2",IF(AR10>35,"B1",IF(AR10>30,"B2",IF(AR10>25,"C1",IF(AR10>20,"C2",IF(AR10>15,"D1",IF(AR10>10,"D2",IF(AR10>5,"E1",IF(AR10>0,"E2")))))))))) -> B1 | AT10: 65 | AU10: =IF(AT10>80,"A1",IF(AT10>70,"A2",IF(AT10>60,"B1",IF(AT10>50,"B2",IF(AT10>40,"C1",IF(AT10>30,"C2",IF(AT10>20,"D1",IF(AT10>10,"D2",IF(AT10>0,"E1",IF(AT10>0,"E2")))))))))) -> B1 | AV10: 24 | AW10: =IF(AV10>45,"A1",IF(AV10>40,"A2",IF(AV10>35,"B1",IF(AV10>30,"B2",IF(AV10>25,"C1",IF(AV10>20,"C2",IF(AV10>15,"D1",IF(AV10>10,"D2",IF(AV10>5,"E1",IF(AV10>0,"E2")))))))))) -> C2 | AX10: 45 | AY10: =IF(AR10>45,"A1",IF(AR10>40,"A2",IF(AR10>35,"B1",IF(AR10>30,"B2",IF(AR10>25,"C1",IF(AR10>20,"C2",IF(AR10>15,"D1",IF(AR10>10,"D2",IF(AR10>5,"E1",IF(AR10>0,"E2")))))))))) -> B1 | AZ10: 86 | BA10: =IF(AZ10>80,"A1",IF(AZ10>70,"A2",IF(AZ10>60,"B1",IF(AZ10>50,"B2",IF(AZ10>40,"C1",IF(AZ10>30,"C2",IF(AZ10>20,"D1",IF(AZ10>10,"D2",IF(AZ10>0,"E1",IF(AZ10>0,"E2")))))))))) -> A1 | BB10: =SUM(AP10,AR10,AT10,AV10,AX10,AZ10) -> 281 | BC10: 34 | BD10: =IF(BC10>45,"A1",IF(BC10>40,"A2",IF(BC10>35,"B1",IF(BC10>30,"B2",IF(BC10>25,"C1",IF(BC10>20,"C2",IF(BC10>15,"D1",IF(BC10>10,"D2",IF(BC10>5,"E1",IF(BC10>0,"E2")))))))))) -> B2 | BE10: 34 | BF10: =IF(BE10>45,"A1",IF(BE10>40,"A2",IF(BE10>35,"B1",IF(BE10>30,"B2",IF(BE10>25,"C1",IF(BE10>20,"C2",IF(BE10>15,"D1",IF(BE10>10,"D2",IF(BE10>5,"E1",IF(BE10>0,"E2")))))))))) -> B2 | BG10: 64 | BH10: =IF(BG10>80,"A1",IF(BG10>70,"A2",IF(BG10>60,"B1",IF(BG10>50,"B2",IF(BG10>40,"C1",IF(BG10>30,"C2",IF(BG10>20,"D1",IF(BG10>10,"D2",IF(BG10>0,"E1",IF(BG10>0,"E2")))))))))) -> B1 | BI10: 42 | BJ10: =IF(BI10>45,"A1",IF(BI10>40,"A2",IF(BI10>35,"B1",IF(BI10>30,"B2",IF(BI10>25,"C1",IF(BI10>20,"C2",IF(BI10>15,"D1",IF(BI10>10,"D2",IF(BI10>5,"E1",IF(BI10>0,"E2")))))))))) -> A2 | BK10: 43 | BL10: =IF(BE10>45,"A1",IF(BE10>40,"A2",IF(BE10>35,"B1",IF(BE10>30,"B2",IF(BE10>25,"C1",IF(BE10>20,"C2",IF(BE10>15,"D1",IF(BE10>10,"D2",IF(BE10>5,"E1",IF(BE10>0,"E2")))))))))) -> B2 | BM10: 33 | BN10: =IF(BM10>80,"A1",IF(BM10>70,"A2",IF(BM10>60,"B1",IF(BM10>50,"B2",IF(BM10>40,"C1",IF(BM10>30,"C2",IF(BM10>20,"D1",IF(BM10>10,"D2",IF(BM10>0,"E1",IF(BM10>0,"E2")))))))))) -> C2 | BO10: =SUM(BC10,BE10,BG10,BI10,BK10,BM10) -> 250 | BP10: 38 | BQ10: B1 | BR10: 45 | BS10: =IF(BR10>45,"A1",IF(BR10>40,"A2",IF(BR10>35,"B1",IF(BR10>30,"B2",IF(BR10>25,"C1",IF(BR10>20,"C2",IF(BR10>15,"D1",IF(BR10>10,"D2",IF(BR10>5,"E1",IF(BR10>0,"E2")))))))))) -> A2 | BT10: 55 | BU10: =IF(BT10>80,"A1",IF(BT10>70,"A2",IF(BT10>60,"B1",IF(BT10>50,"B2",IF(BT10>40,"C1",IF(BT10>30,"C2",IF(BT10>20,"D1",IF(BT10>10,"D2",IF(BT10>0,"E1",IF(BT10>0,"E2")))))))))) -> B2 | BV10: 28 | BW10: =IF(BV10>45,"A1",IF(BV10>40,"A2",IF(BV10>35,"B1",IF(BV10>30,"B2",IF(BV10>25,"C1",IF(BV10>20,"C2",IF(BV10>15,"D1",IF(BV10>10,"D2",IF(BV10>5,"E1",IF(BV10>0,"E2")))))))))) -> C1 | BX10: 33 | BY10: B2 | BZ10: 76 | CA10: =IF(BZ10>80,"A1",IF(BZ10>70,"A2",IF(BZ10>60,"B1",IF(BZ10>50,"B2",IF(BZ10>40,"C1",IF(BZ10>30,"C2",IF(BZ10>20,"D1",IF(BZ10>10,"D2",IF(BZ10>0,"E1",IF(BZ10>0,"E2")))))))))) -> A2 | CB10: =SUM(BP10,BR10,BT10,BV10,BX10,BZ10) -> 275
A11: 9502 | B11: POONAM | C11: 23 | D11: =IF(C11>45,"A1",IF(C11>40,"A2",IF(C11>35,"B1",IF(C11>30,"B2",IF(C11>25,"C1",IF(C11>20,"C2",IF(C11>15,"D1",IF(C11>10,"D2",IF(C11>5,"E1",IF(C11>0,"E2")))))))))) -> C2 | E11: 28 | F11: =IF(E11>45,"A1",IF(E11>40,"A2",IF(E11>35,"B1",IF(E11>30,"B2",IF(E11>25,"C1",IF(E11>20,"C2",IF(E11>15,"D1",IF(E11>10,"D2",IF(E11>5,"E1",IF(E11>0,"E2")))))))))) -> C1 | G11: 75 | H11: A2 | I11: 34 | J11: =IF(I11>45,"A1",IF(I11>40,"A2",IF(I11>35,"B1",IF(I11>30,"B2",IF(I11>25,"C1",IF(I11>20,"C2",IF(I11>15,"D1",IF(I11>10,"D2",IF(I11>5,"E1",IF(I11>0,"E2")))))))))) -> B2 | K11: 39 | L11: =IF(K11>45,"A1",IF(K11>40,"A2",IF(K11>35,"B1",IF(K11>30,"B2",IF(K11>25,"C1",IF(K11>20,"C2",IF(K11>15,"D1",IF(K11>10,"D2",IF(K11>5,"E1",IF(K11>0,"E2")))))))))) -> B1 | M11: 75 | N11: =IF(M11>80,"A1",IF(M11>70,"A2",IF(M11>60,"B1",IF(M11>50,"B2",IF(M11>40,"C1",IF(M11>30,"C2",IF(M11>20,"D1",IF(M11>10,"D2",IF(M11>0,"E1",IF(M11>0,"E2")))))))))) -> A2 | O11: =SUM(C11,E11,G11,I11,K11,M11) -> 274 | P11: 23 | Q11: C2 | R11: 28 | S11: C1 | T11: 81 | U11: A1 | V11: 38 | W11: B1 | X11: 23 | Y11: C2 | Z11: 64 | AA11: B1 | AB11: =SUM(P11,R11,T11,V11,X11,Z11) -> 257 | AC11: 22 | AD11: =IF(AC11>45,"A1",IF(AC11>40,"A2",IF(AC11>35,"B1",IF(AC11>30,"B2",IF(AC11>25,"C1",IF(AC11>20,"C2",IF(AC11>15,"D1",IF(AC11>10,"D2",IF(AC11>5,"E1",IF(AC11>0,"E2")))))))))) -> C2 | AE11: 30 | AF11: C1 | AG11: 67 | AH11: B1 | AI11: 29 | AJ11: C1 | AK11: 30 | AL11: C1 | AM11: 76 | AN11: A2 | AO11: 256 | AP11: 30 | AQ11: C1 | AR11: 28 | AS11: C1 | AT11: 76 | AU11: A2 | AV11: 23 | AW11: C2 | AX11: 23 | AY11: C1 | AZ11: 64 | BA11: B1 | BB11: =SUM(AP11,AR11,AT11,AV11,AX11,AZ11) -> 244 | BC11: 30 | BD11: C1 | BE11: 44 | BF11: A2 | BG11: 67 | BH11: B1 | BI11: 38 | BJ11: B1 | BK11: 35 | BL11: A2 | BM11: 22 | BN11: D1 | BO11: =SUM(BC11,BE11,BG11,BI11,BK11,BM11) -> 236 | BP11: 47 | BQ11: A1 | BR11: 23 | BS11: C2 | BT11: 76 | BU11: A2 | BV11: 29 | BW11: C1 | BX11: 22 | BY11: C2 | BZ11: 54 | CA11: B2 | CB11: =SUM(BP11,BR11,BT11,BV11,BX11,BZ11) -> 251
A12: 9503 | B12: SHIVANI BHOWRA | C12: 29 | D12: C1 | E12: 23 | F12: C2 | G12: 73 | H12: =IF(G12>80,"A1",IF(G12>70,"A2",IF(G12>60,"B1",IF(G12>50,"B2",IF(G12>40,"C1",IF(G12>30,"C2",IF(G12>20,"D1",IF(G12>10,"D2",IF(G12>0,"E1",IF(G12>0,"E2")))))))))) -> A2 | I12: 37 | J12: =IF(I12>45,"A1",IF(I12>40,"A2",IF(I12>35,"B1",IF(I12>30,"B2",IF(I12>25,"C1",IF(I12>20,"C2",IF(I12>15,"D1",IF(I12>10,"D2",IF(I12>5,"E1",IF(I12>0,"E2")))))))))) -> B1 | K12: 38 | L12: B1 | M12: 47 | N12: C1 | O12: 247 | P12: 34 | Q12: B2 | R12: 24 | S12: C2 | T12: 65 | U12: B1 | V12: 32 | W12: B2 | X12: 34 | Y12: B2 | Z12: 67 | AA12: B1 | AB12: 256 | AC12: 30 | AD12: =IF(AC12>45,"A1",IF(AC12>40,"A2",IF(AC12>35,"B1",IF(AC12>30,"B2",IF(AC12>25,"C1",IF(AC12>20,"C2",IF(AC12>15,"D1",IF(AC12>10,"D2",IF(AC12>5,"E1",IF(AC12>0,"E2")))))))))) -> C1 | AE12: 41 | AF12: A2 | AG12: 76 | AH12: A2 | AI12: 39 | AJ12: B1 | AK12: 41 | AL12: A2 | AM12: 54 | AN12: B2 | AO12: 257 | AP12: 25 | AQ12: C2 | AR12: 24 | AS12: C2 | AT12: 64 | AU12: B1 | AV12: 25 | AW12: C2 | AX12: 34 | AY12: C2 | AZ12: 67 | BA12: B1 | BB12: 239 | BC12: 41 | BD12: A2 | BE12: 23 | BF12: C2 | BG12: 76 | BH12: A2 | BI12: 36 | BJ12: B1 | BK12: 31 | BL12: C2 | BM12: 30 | BN12: D1 | BO12: 237 | BP12: 37 | BQ12: B1 | BR12: 34 | BS12: B2 | BT12: 35 | BU12: C2 | BV12: 39 | BW12: B1 | BX12: 30 | BY12: C1 | BZ12: 76 | CA12: A2 | CB12: 251
A13: 9504 | B13: SWATI | C13: 38 | D13: B1 | E13: 45 | F13: A2 | G13: 85 | H13: =IF(G13>80,"A1",IF(G13>70,"A2",IF(G13>60,"B1",IF(G13>50,"B2",IF(G13>40,"C1",IF(G13>30,"C2",IF(G13>20,"D1",IF(G13>10,"D2",IF(G13>0,"E1",IF(G13>0,"E2")))))))))) -> A1 | I13: 39 | J13: =IF(I13>45,"A1",IF(I13>40,"A2",IF(I13>35,"B1",IF(I13>30,"B2",IF(I13>25,"C1",IF(I13>20,"C2",IF(I13>15,"D1",IF(I13>10,"D2",IF(I13>5,"E1",IF(I13>0,"E2")))))))))) -> B1 | K13: 28 | L13: C1 | M13: 37 | N13: C2 | O13: 272 | P13: 30 | Q13: C1 | R13: 23 | S13: C2 | T13: 76 | U13: A2 | V13: 43 | W13: A2 | X13: 30 | Y13: C1 | Z13: 76 | AA13: A2 | AB13: 278 | AC13: 25 | AD13: =IF(AC13>45,"A1",IF(AC13>40,"A2",IF(AC13>35,"B1",IF(AC13>30,"B2",IF(AC13>25,"C1",IF(AC13>20,"C2",IF(AC13>15,"D1",IF(AC13>10,"D2",IF(AC13>5,"E1",IF(AC13>0,"E2")))))))))) -> C2 | AE13: 12 | AF13: D2 | AG13: 35 | AH13: C2 | AI13: 29 | AJ13: C1 | AK13: 12 | AL13: D2 | AM13: 65 | AN13: B1 | AO13: 258 | AP13: 35 | AQ13: B2 | AR13: 23 | AS13: C2 | AT13: 56 | AU13: B2 | AV13: 34 | AW13: B2 | AX13: 30 | AY13: C2 | AZ13: 76 | BA13: A2 | BB13: 254 | BC13: 12 | BD13: D2 | BE13: 34 | BF13: B2 | BG13: 35 | BH13: C2 | BI13: 29 | BJ13: C1 | BK13: 28 | BL13: B2 | BM13: 25 | BN13: D1 | BO13: 163 | BP13: 28 | BQ13: C1 | BR13: 30 | BS13: C1 | BT13: 76 | BU13: A2 | BV13: 29 | BW13: C1 | BX13: 25 | BY13: C2 | BZ13: 54 | CA13: B2 | CB13: 242
A14: 9505 | B14: KRITI | C14: 41 | D14: A2 | E14: 39 | F14: B1 | G14: 26 | H14: D1 | I14: 39 | J14: =IF(I14>45,"A1",IF(I14>40,"A2",IF(I14>35,"B1",IF(I14>30,"B2",IF(I14>25,"C1",IF(I14>20,"C2",IF(I14>15,"D1",IF(I14>10,"D2",IF(I14>5,"E1",IF(I14>0,"E2")))))))))) -> B1 | K14: 29 | L14: C1 | M14: 36 | N14: C2 | O14: 210 | P14: 41 | Q14: A2 | R14: 25 | S14: C2 | T14: 64 | U14: B1 | V14: 44 | W14: A2 | X14: 41 | Y14: A2 | Z14: 35 | AA14: C2 | AB14: 250 | AC14: 35 | AD14: =IF(AC14>45,"A1",IF(AC14>40,"A2",IF(AC14>35,"B1",IF(AC14>30,"B2",IF(AC14>25,"C1",IF(AC14>20,"C2",IF(AC14>15,"D1",IF(AC14>10,"D2",IF(AC14>5,"E1",IF(AC14>0,"E2")))))))))) -> B2 | AE14: 12 | AF14: D2 | AG14: 76 | AH14: A2 | AI14: 38 | AJ14: B1 | AK14: 12 | AL14: D2 | AM14: 76 | AN14: A2 | AO14: 259 | AP14: 28 | AQ14: C1 | AR14: 25 | AS14: C2 | AT14: 76 | AU14: A2 | AV14: 30 | AW14: C1 | AX14: 41 | AY14: C2 | AZ14: 35 | BA14: C2 | BB14: 235 | BC14: 12 | BD14: D2 | BE14: 44 | BF14: A2 | BG14: 76 | BH14: A2 | BI14: 31 | BJ14: B2 | BK14: 38 | BL14: A2 | BM14: 64 | BN14: B1 | BO14: 265 | BP14: 28 | BQ14: C1 | BR14: 41 | BS14: A2 | BT14: 87 | BU14: A1 | BV14: 38 | BW14: B1 | BX14: 35 | BY14: B2 | BZ14: 65 | CA14: B1 | CB14: 294
A15: 9506 | B15: NEETU | C15: 24 | D15: C2 | E15: 27 | F15: C1 | G15: 56 | H15: B2 | I15: 28 | J15: =IF(I15>45,"A1",IF(I15>40,"A2",IF(I15>35,"B1",IF(I15>30,"B2",IF(I15>25,"C1",IF(I15>20,"C2",IF(I15>15,"D1",IF(I15>10,"D2",IF(I15>5,"E1",IF(I15>0,"E2")))))))))) -> C1 | K15: 39 | L15: B1 | M15: 46 | N15: C1 | O15: 220 | P15: 12 | Q15: D2 | R15: 45 | S15: A2 | T15: 56 | U15: B2 | V15: 29 | W15: C1 | X15: 12 | Y15: D2 | Z15: 76 | AA15: A2 | AB15: 230 | AC15: 28 | AD15: =IF(AC15>45,"A1",IF(AC15>40,"A2",IF(AC15>35,"B1",IF(AC15>30,"B2",IF(AC15>25,"C1",IF(AC15>20,"C2",IF(AC15>15,"D1",IF(AC15>10,"D2",IF(AC15>5,"E1",IF(AC15>0,"E2")))))))))) -> C1 | AE15: 34 | AF15: B2 | AG15: 87 | AH15: A1 | AI15: 22 | AJ15: C2 | AK15: 34 | AL15: B2 | AM15: 45 | AN15: C1 | AO15: 260 | AP15: 40 | AQ15: B1 | AR15: 45 | AS15: A2 | AT15: 87 | AU15: A1 | AV15: 41 | AW15: A2 | AX15: 12 | AY15: A2 | AZ15: 76 | BA15: A2 | BB15: 301 | BC15: 34 | BD15: B2 | BE15: 45 | BF15: A2 | BG15: 87 | BH15: A1 | BI15: 36 | BJ15: B1 | BK15: 14 | BL15: A2 | BM15: 67 | BN15: B1 | BO15: 283 | BP15: 36 | BQ15: B1 | BR15: 12 | BS15: D2 | BT15: 54 | BU15: B2 | BV15: 22 | BW15: C2 | BX15: 28 | BY15: C1 | BZ15: 76 | CA15: A2 | CB15: 228
A16: 9507 | B16: SHREYA | C16: 42 | D16: A2 | E16: 45 | F16: A2 | G16: 84 | H16: A1 | I16: 24 | J16: =IF(I16>45,"A1",IF(I16>40,"A2",IF(I16>35,"B1",IF(I16>30,"B2",IF(I16>25,"C1",IF(I16>20,"C2",IF(I16>15,"D1",IF(I16>10,"D2",IF(I16>5,"E1",IF(I16>0,"E2")))))))))) -> C2 | K16: 29 | L16: C1 | M16: 57 | N16: B2 | O16: 281 | P16: 12 | Q16: D2 | R16: 45 | S16: A2 | T16: 76 | U16: A2 | V16: 39 | W16: B1 | X16: 12 | Y16: D2 | Z16: 87 | AA16: A1 | AB16: 271 | AC16: 40 | AD16: =IF(AC16>45,"A1",IF(AC16>40,"A2",IF(AC16>35,"B1",IF(AC16>30,"B2",IF(AC16>25,"C1",IF(AC16>20,"C2",IF(AC16>15,"D1",IF(AC16>10,"D2",IF(AC16>5,"E1",IF(AC16>0,"E2")))))))))) -> B1 | AE16: 38 | AF16: B1 | AG16: 54 | AH16: B2 | AI16: 33 | AJ16: B2 | AK16: 38 | AL16: B1 | AM16: 45 | AN16: C1 | AO16: 261 | AP16: 33 | AQ16: B2 | AR16: 46 | AS16: A1 | AT16: 54 | AU16: B2 | AV16: 12 | AW16: D2 | AX16: 12 | AY16: A1 | AZ16: 87 | BA16: A1 | BB16: 244 | BC16: 38 | BD16: B1 | BE16: 23 | BF16: C2 | BG16: 54 | BH16: B2 | BI16: 28 | BJ16: C1 | BK16: 20 | BL16: C2 | BM16: 76 | BN16: A2 | BO16: 239 | BP16: 35 | BQ16: B2 | BR16: 12 | BS16: D2 | BT16: 76 | BU16: A2 | BV16: 33 | BW16: B2 | BX16: 40 | BY16: B1 | BZ16: 45 | CA16: C1 | CB16: 241
A17: 9508 | B17: HIMANSHI | C17: 34 | D17: B2 | E17: 39 | F17: B1 | G17: 75 | H17: A2 | I17: 23 | J17: C2 | K17: 38 | L17: B1 | M17: 36 | N17: C2 | O17: 245 | P17: 34 | Q17: B2 | R17: 23 | S17: C2 | T17: 87 | U17: A1 | V17: 28 | W17: C1 | X17: 34 | Y17: B2 | Z17: 54 | AA17: B2 | AB17: 260 | AC17: 33 | AD17: =IF(AC17>45,"A1",IF(AC17>40,"A2",IF(AC17>35,"B1",IF(AC17>30,"B2",IF(AC17>25,"C1",IF(AC17>20,"C2",IF(AC17>15,"D1",IF(AC17>10,"D2",IF(AC17>5,"E1",IF(AC17>0,"E2")))))))))) -> B2 | AE17: 29 | AF17: C1 | AG17: 76 | AH17: A2 | AI17: 22 | AJ17: C2 | AK17: 29 | AL17: C1 | AM17: 76 | AN17: A2 | AO17: 262 | AP17: 39 | AQ17: B1 | AR17: 45 | AS17: A2 | AT17: 86 | AU17: A1 | AV17: 12 | AW17: D2 | AX17: 34 | AY17: A2 | AZ17: 54 | BA17: B2 | BB17: 270 | BC17: 29 | BD17: C1 | BE17: 34 | BF17: B2 | BG17: 76 | BH17: A2 | BI17: 43 | BJ17: A2 | BK17: 39 | BL17: B2 | BM17: 35 | BN17: C2 | BO17: 256 | BP17: 37 | BQ17: B1 | BR17: 34 | BS17: B2 | BT17: 54 | BU17: B2 | BV17: 22 | BW17: C2 | BX17: 28 | BY17: C1 | BZ17: 45 | CA17: C1 | CB17: 220
A18: 9509 | B18: CHANCHAL DASS | C18: 43 | D18: A2 | E18: 37 | F18: B1 | G18: 47 | H18: C1 | I18: 25 | J18: C2 | K18: 22 | L18: C2 | M18: 76 | N18: A2 | O18: 250 | P18: 38 | Q18: B1 | R18: 34 | S18: B2 | T18: 54 | U18: B2 | V18: 23 | W18: C2 | X18: 38 | Y18: B1 | Z18: 76 | AA18: A2 | AB18: 263 | AC18: 39 | AD18: =IF(AC18>45,"A1",IF(AC18>40,"A2",IF(AC18>35,"B1",IF(AC18>30,"B2",IF(AC18>25,"C1",IF(AC18>20,"C2",IF(AC18>15,"D1",IF(AC18>10,"D2",IF(AC18>5,"E1",IF(AC18>0,"E2")))))))))) -> B1 | AE18: 38 | AF18: B1 | AG18: 54 | AH18: B2 | AI18: 30 | AJ18: C1 | AK18: 38 | AL18: B1 | AM18: 76 | AN18: A2 | AO18: 263 | AP18: 38 | AQ18: B1 | AR18: 23 | AS18: C2 | AT18: 64 | AU18: B1 | AV18: 34 | AW18: B2 | AX18: 38 | AY18: C2 | AZ18: 82 | BA18: A1 | BB18: 279 | BC18: 38 | BD18: B1 | BE18: 30 | BF18: C1 | BG18: 54 | BH18: B2 | BI18: 35 | BJ18: B2 | BK18: 28 | BL18: C1 | BM18: 76 | BN18: A2 | BO18: 261 | BP18: 42 | BQ18: A2 | BR18: 38 | BS18: B1 | BT18: 76 | BU18: A2 | BV18: 30 | BW18: C1 | BX18: 29 | BY18: C1 | BZ18: 76 | CA18: A2 | CB18: 291
A19: 9510 | B19: TANIYA CHAUHAN | C19: 34 | D19: B2 | E19: 37 | F19: B1 | G19: 37 | H19: C2 | I19: 45 | J19: A2 | K19: 33 | L19: B2 | M19: 64 | N19: B1 | O19: 250 | P19: 29 | Q19: C1 | R19: 30 | S19: C1 | T19: 86 | U19: A1 | V19: 45 | W19: A2 | X19: 29 | Y19: C1 | Z19: 54 | AA19: B2 | AB19: 273 | AC19: 38 | AD19: =IF(AC19>45,"A1",IF(AC19>40,"A2",IF(AC19>35,"B1",IF(AC19>30,"B2",IF(AC19>25,"C1",IF(AC19>20,"C2",IF(AC19>15,"D1",IF(AC19>10,"D2",IF(AC19>5,"E1",IF(AC19>0,"E2")))))))))) -> B1 | AE19: 22 | AF19: C2 | AG19: 76 | AH19: A2 | AI19: 25 | AJ19: C2 | AK19: 39 | AL19: B1 | AM19: 55 | AN19: B2 | AO19: 264 | AP19: 32 | AQ19: B2 | AR19: 34 | AS19: B2 | AT19: 67 | AU19: B1 | AV19: 38 | AW19: B1 | AX19: 29 | AY19: B2 | AZ19: 75 | BA19: A2 | BB19: 275 | BC19: 12 | BD19: D2 | BE19: 41 | BF19: A2 | BG19: 76 | BH19: A2 | BI19: 31 | BJ19: B2 | BK19: 38 | BL19: A2 | BM19: 87 | BN19: A1 | BO19: 285 | BP19: 33 | BQ19: B2 | BR19: 29 | BS19: C1 | BT19: 54 | BU19: B2 | BV19: 25 | BW19: C2 | BX19: 39 | BY19: B1 | BZ19: 76 | CA19: A2 | CB19: 256
A20: 9511 | B20: LOVELY | C20: 39 | D20: B1 | E20: 39 | F20: B1 | G20: 36 | H20: C2 | I20: 23 | J20: C2 | K20: 22 | L20: C2 | M20: 75 | N20: A2 | O20: 234 | P20: 38 | Q20: B1 | R20: 41 | S20: A2 | T20: 64 | U20: B1 | V20: 39 | W20: B1 | X20: 38 | Y20: B1 | Z20: 76 | AA20: A2 | AB20: 296 | AC20: 32 | AD20: =IF(AC20>45,"A1",IF(AC20>40,"A2",IF(AC20>35,"B1",IF(AC20>30,"B2",IF(AC20>25,"C1",IF(AC20>20,"C2",IF(AC20>15,"D1",IF(AC20>10,"D2",IF(AC20>5,"E1",IF(AC20>0,"E2")))))))))) -> B2 | AE20: 30 | AF20: C1 | AG20: 54 | AH20: B2 | AI20: 35 | AJ20: B2 | AK20: 28 | AL20: C1 | AM20: 76 | AN20: A2 | AO20: 265 | AP20: 43 | AQ20: A2 | AR20: 30 | AS20: C1 | AT20: 76 | AU20: A2 | AV20: 29 | AW20: C1 | AX20: 38 | AY20: C1 | AZ20: 73 | BA20: A2 | BB20: 289 | BC20: 12 | BD20: D2 | BE20: 12 | BF20: D2 | BG20: 54 | BH20: B2 | BI20: 28 | BJ20: C1 | BK20: 47 | BL20: D2 | BM20: 54 | BN20: B2 | BO20: 207 | BP20: 34 | BQ20: B2 | BR20: 38 | BS20: B1 | BT20: 65 | BU20: B1 | BV20: 35 | BW20: B2 | BX20: 29 | BY20: C1 | BZ20: 55 | CA20: B2 | CB20: 256
A21: 9512 | B21: JAYA | C21: 29 | D21: C1 | E21: 20 | F21: D1 | G21: 46 | H21: C1 | I21: 34 | J21: B2 | K21: 30 | L21: C1 | M21: 63 | N21: B1 | O21: 222 | P21: 39 | Q21: B1 | R21: 12 | S21: D2 | T21: 67 | U21: B1 | V21: 27 | W21: C1 | X21: 41 | Y21: A2 | Z21: 54 | AA21: B2 | AB21: 240 | AC21: 43 | AD21: =IF(AC21>45,"A1",IF(AC21>40,"A2",IF(AC21>35,"B1",IF(AC21>30,"B2",IF(AC21>25,"C1",IF(AC21>20,"C2",IF(AC21>15,"D1",IF(AC21>10,"D2",IF(AC21>5,"E1",IF(AC21>0,"E2")))))))))) -> A2 | AE21: 25 | AF21: C2 | AG21: 65 | AH21: B1 | AI21: 28 | AJ21: C1 | AK21: 24 | AL21: C2 | AM21: 35 | AN21: C2 | AO21: 266 | AP21: 44 | AQ21: A2 | AR21: 41 | AS21: A2 | AT21: 35 | AU21: C2 | AV21: 38 | AW21: B1 | AX21: 41 | AY21: A2 | AZ21: 85 | BA21: A1 | BB21: 284 | BC21: 34 | BD21: B2 | BE21: 12 | BF21: D2 | BG21: 65 | BH21: B1 | BI21: 38 | BJ21: B1 | BK21: 37 | BL21: D2 | BM21: 76 | BN21: A2 | BO21: 262 | BP21: 30 | BQ21: C1 | BR21: 41 | BS21: A2 | BT21: 76 | BU21: A2 | BV21: 28 | BW21: C1 | BX21: 38 | BY21: B1 | BZ21: 76 | CA21: A2 | CB21: 289
A22: 9513 | B22: BHAVNA | C22: 42 | D22: A2 | E22: 48 | F22: A1 | G22: 57 | H22: B2 | I22: 30 | J22: C1 | K22: 25 | L22: C2 | M22: 76 | N22: A2 | O22: 278 | P22: 28 | Q22: C1 | R22: 12 | S22: D2 | T22: 76 | U22: A2 | V22: 45 | W22: A2 | X22: 39 | Y22: B1 | Z22: 65 | AA22: B1 | AB22: 265 | AC22: 44 | AD22: =IF(AC22>45,"A1",IF(AC22>40,"A2",IF(AC22>35,"B1",IF(AC22>30,"B2",IF(AC22>25,"C1",IF(AC22>20,"C2",IF(AC22>15,"D1",IF(AC22>10,"D2",IF(AC22>5,"E1",IF(AC22>0,"E2")))))))))) -> A2 | AE22: 35 | AF22: B2 | AG22: 76 | AH22: A2 | AI22: 40 | AJ22: B1 | AK22: 23 | AL22: C2 | AM22: 76 | AN22: A2 | AO22: 267 | AP22: 29 | AQ22: C1 | AR22: 12 | AS22: D2 | AT22: 76 | AU22: A2 | AV22: 35 | AW22: B2 | AX22: 39 | AY22: D2 | AZ22: 26 | BA22: D1 | BB22: 217 | BC22: 38 | BD22: B1 | BE22: 34 | BF22: B2 | BG22: 76 | BH22: A2 | BI22: 14 | BJ22: D2 | BK22: 28 | BL22: B2 | BM22: 54 | BN22: B2 | BO22: 244 | BP22: 41 | BQ22: A2 | BR22: 39 | BS22: B1 | BT22: 45 | BU22: C1 | BV22: 40 | BW22: B1 | BX22: 22 | BY22: C2 | BZ22: 76 | CA22: A2 | CB22: 263
A23: 9514 | B23: POOJA | C23: 38 | D23: B1 | E23: 39 | F23: B1 | G23: 36 | H23: C2 | I23: 41 | J23: A2 | K23: 35 | L23: B2 | M23: 64 | N23: B1 | O23: 253 | P23: 24 | Q23: C2 | R23: 34 | S23: B2 | T23: 35 | U23: C2 | V23: 39 | W23: B1 | X23: 38 | Y23: B1 | Z23: 76 | AA23: A2 | AB23: 246 | AC23: 29 | AD23: =IF(AC23>45,"A1",IF(AC23>40,"A2",IF(AC23>35,"B1",IF(AC23>30,"B2",IF(AC23>25,"C1",IF(AC23>20,"C2",IF(AC23>15,"D1",IF(AC23>10,"D2",IF(AC23>5,"E1",IF(AC23>0,"E2")))))))))) -> C1 | AE23: 28 | AF23: C1 | AG23: 45 | AH23: C1 | AI23: 33 | AJ23: B2 | AK23: 25 | AL23: C2 | AM23: 87 | AN23: A1 | AO23: 268 | AP23: 39 | AQ23: B1 | AR23: 12 | AS23: D2 | AT23: 87 | AU23: A1 | AV23: 28 | AW23: C1 | AX23: 38 | AY23: D2 | AZ23: 56 | BA23: B2 | BB23: 260 | BC23: 29 | BD23: C1 | BE23: 38 | BF23: B1 | BG23: 45 | BH23: C1 | BI23: 39 | BJ23: B1 | BK23: 28 | BL23: B1 | BM23: 76 | BN23: A2 | BO23: 255 | BP23: 12 | BQ23: D2 | BR23: 38 | BS23: B1 | BT23: 45 | BU23: C1 | BV23: 33 | BW23: B2 | BX23: 33 | BY23: B2 | BZ23: 64 | CA23: B1 | CB23: 225
A24: 9515 | B24: KRITIKA | C24: 36 | D24: B1 | E24: 40 | F24: B1 | G24: 76 | H24: A2 | I24: 12 | J24: D2 | K24: 28 | L24: C1 | M24: 67 | N24: B1 | O24: 259 | P24: 23 | Q24: C2 | R24: 38 | S24: B1 | T24: 76 | U24: A2 | V24: 37 | W24: B1 | X24: 28 | Y24: C1 | Z24: 54 | AA24: B2 | AB24: 256 | AC24: 39 | AD24: =IF(AC24>45,"A1",IF(AC24>40,"A2",IF(AC24>35,"B1",IF(AC24>30,"B2",IF(AC24>25,"C1",IF(AC24>20,"C2",IF(AC24>15,"D1",IF(AC24>10,"D2",IF(AC24>5,"E1",IF(AC24>0,"E2")))))))))) -> B1 | AE24: 40 | AF24: B1 | AG24: 45 | AH24: C1 | AI24: 39 | AJ24: B1 | AK24: 45 | AL24: A2 | AM24: 54 | AN24: B2 | AO24: 269 | AP24: 28 | AQ24: C1 | AR24: 34 | AS24: B2 | AT24: 54 | AU24: B2 | AV24: 40 | AW24: B1 | AX24: 28 | AY24: B2 | AZ24: 84 | BA24: A1 | BB24: 268 | BC24: 38 | BD24: B1 | BE24: 29 | BF24: C1 | BG24: 45 | BH24: C1 | BI24: 28 | BJ24: C1 | BK24: 36 | BL24: C1 | BM24: 54 | BN24: B2 | BO24: 230 | BP24: 12 | BQ24: D2 | BR24: 28 | BS24: C1 | BT24: 76 | BU24: A2 | BV24: 39 | BW24: B1 | BX24: 22 | BY24: C2 | BZ24: 67 | CA24: B1 | CB24: 244
A25: 9516 | B25: NEERA | C25: 29 | D25: C1 | E25: 43 | F25: A2 | G25: 64 | H25: B1 | I25: 12 | J25: D2 | K25: 40 | L25: B1 | M25: 76 | N25: A2 | O25: 264 | P25: 25 | Q25: C2 | R25: 29 | S25: C1 | T25: 87 | U25: A1 | V25: 37 | W25: B1 | X25: 29 | Y25: C1 | Z25: 67 | AA25: B1 | AB25: 274 | AC25: 28 | AD25: =IF(AC25>45,"A1",IF(AC25>40,"A2",IF(AC25>35,"B1",IF(AC25>30,"B2",IF(AC25>25,"C1",IF(AC25>20,"C2",IF(AC25>15,"D1",IF(AC25>10,"D2",IF(AC25>5,"E1",IF(AC25>0,"E2")))))))))) -> C1 | AE25: 33 | AF25: B2 | AG25: 76 | AH25: A2 | AI25: 38 | AJ25: B1 | AK25: 28 | AL25: C1 | AM25: 76 | AN25: A2 | AO25: 270 | AP25: 23 | AQ25: C2 | AR25: 38 | AS25: B1 | AT25: 76 | AU25: A2 | AV25: 33 | AW25: B2 | AX25: 29 | AY25: B1 | AZ25: 75 | BA25: A2 | BB25: 274 | BC25: 41 | BD25: A2 | BE25: 38 | BF25: B1 | BG25: 76 | BH25: A2 | BI25: 24 | BJ25: C2 | BK25: 35 | BL25: B1 | BM25: 65 | BN25: B1 | BO25: 279 | BP25: 34 | BQ25: B2 | BR25: 29 | BS25: C1 | BT25: 76 | BU25: A2 | BV25: 38 | BW25: B1 | BX25: 30 | BY25: C1 | BZ25: 76 | CA25: A2 | CB25: 283
A26: 9517 | B26: PRAGYA | C26: 31 | D26: B2 | E26: 48 | F26: A1 | G26: 75 | H26: A2 | I26: 34 | J26: B2 | K26: 33 | L26: B2 | M26: 35 | N26: C2 | O26: 256 | P26: 45 | Q26: A2 | R26: 38 | S26: B1 | T26: 54 | U26: B2 | V26: 39 | W26: B1 | X26: 39 | Y26: B1 | Z26: 81 | AA26: A1 | AB26: 296 | AC26: 23 | AD26: =IF(AC26>45,"A1",IF(AC26>40,"A2",IF(AC26>35,"B1",IF(AC26>30,"B2",IF(AC26>25,"C1",IF(AC26>20,"C2",IF(AC26>15,"D1",IF(AC26>10,"D2",IF(AC26>5,"E1",IF(AC26>0,"E2")))))))))) -> C2 | AE26: 39 | AF26: B1 | AG26: 76 | AH26: A2 | AI26: 32 | AJ26: B2 | AK26: 40 | AL26: B1 | AM26: 54 | AN26: B2 | AO26: 271 | AP26: 45 | AQ26: A2 | AR26: 29 | AS26: C1 | AT26: 54 | AU26: B2 | AV26: 39 | AW26: B1 | AX26: 39 | AY26: C1 | AZ26: 47 | BA26: C1 | BB26: 253 | BC26: 39 | BD26: B1 | BE26: 41 | BF26: A2 | BG26: 76 | BH26: A2 | BI26: 38 | BJ26: B1 | BK26: 37 | BL26: A2 | BM26: 76 | BN26: A2 | BO26: 307 | BP26: 38 | BQ26: B1 | BR26: 39 | BS26: B1 | BT26: 55 | BU26: B2 | BV26: 32 | BW26: B2 | BX26: 25 | BY26: C2 | BZ26: 35 | CA26: C2 | CB26: 224
A27: 9518 | B27: SADAF | C27: 36 | D27: B1 | E27: 33 | F27: B2 | G27: 63 | H27: B1 | I27: 38 | J27: B1 | K27: 39 | L27: B1 | M27: 76 | N27: A2 | O27: 285 | P27: 23 | Q27: C2 | R27: 41 | S27: A2 | T27: 76 | U27: A2 | V27: 20 | W27: D1 | X27: 29 | Y27: C1 | Z27: 65 | AA27: B1 | AB27: 254 | AC27: 45 | AD27: =IF(AC27>45,"A1",IF(AC27>40,"A2",IF(AC27>35,"B1",IF(AC27>30,"B2",IF(AC27>25,"C1",IF(AC27>20,"C2",IF(AC27>15,"D1",IF(AC27>10,"D2",IF(AC27>5,"E1",IF(AC27>0,"E2")))))))))) -> A2 | AE27: 38 | AF27: B1 | AG27: 55 | AH27: B2 | AI27: 43 | AJ27: A2 | AK27: 33 | AL27: B2 | AM27: 76 | AN27: A2 | AO27: 272 | AP27: 39 | AQ27: B1 | AR27: 38 | AS27: B1 | AT27: 76 | AU27: A2 | AV27: 38 | AW27: B1 | AX27: 29 | AY27: B1 | AZ27: 37 | BA27: C2 | BB27: 257 | BC27: 38 | BD27: B1 | BE27: 39 | BF27: B1 | BG27: 55 | BH27: B2 | BI27: 34 | BJ27: B2 | BK27: 42 | BL27: B1 | BM27: 45 | BN27: C1 | BO27: 253 | BP27: 29 | BQ27: C1 | BR27: 29 | BS27: C1 | BT27: 76 | BU27: A2 | BV27: 43 | BW27: A2 | BX27: 35 | BY27: B2 | BZ27: 76 | CA27: A2 | CB27: 288
A28: 9519 | B28: DIVYA KHARAKWAL | C28: 28 | D28: C1 | E28: 37 | F28: B1 | G28: 76 | H28: A2 | I28: 29 | J28: C1 | K28: 38 | L28: B1 | M28: 87 | N28: A1 | O28: 295 | P28: 45 | Q28: A2 | R28: 39 | S28: B1 | T28: 54 | U28: B2 | V28: 48 | W28: A1 | X28: 38 | Y28: B1 | Z28: 76 | AA28: A2 | AB28: 300 | AC28: 39 | AD28: =IF(AC28>45,"A1",IF(AC28>40,"A2",IF(AC28>35,"B1",IF(AC28>30,"B2",IF(AC28>25,"C1",IF(AC28>20,"C2",IF(AC28>15,"D1",IF(AC28>10,"D2",IF(AC28>5,"E1",IF(AC28>0,"E2")))))))))) -> B1 | AE28: 32 | AF28: B2 | AG28: 76 | AH28: A2 | AI28: 44 | AJ28: A2 | AK28: 39 | AL28: B1 | AM28: 54 | AN28: B2 | AO28: 273 | AP28: 27 | AQ28: C1 | AR28: 41 | AS28: A2 | AT28: 54 | AU28: B2 | AV28: 32 | AW28: B2 | AX28: 38 | AY28: A2 | AZ28: 36 | BA28: C2 | BB28: 228 | BC28: 28 | BD28: C1 | BE28: 38 | BF28: B1 | BG28: 86 | BH28: A1 | BI28: 34 | BJ28: B2 | BK28: 33 | BL28: B1 | BM28: 45 | BN28: C1 | BO28: 264 | BP28: 38 | BQ28: B1 | BR28: 38 | BS28: B1 | BT28: 76 | BU28: A2 | BV28: 44 | BW28: A2 | BX28: 28 | BY28: C1 | BZ28: 87 | CA28: A1 | CB28: 311
A29: 9520 | B29: SIMRAN | C29: 43 | D29: A2 | E29: 29 | F29: C1 | G29: 85 | H29: A1 | I29: 38 | J29: B1 | K29: 32 | L29: B2 | M29: 54 | N29: B2 | O29: 281 | P29: 39 | Q29: B1 | R29: 38 | S29: B1 | T29: 76 | U29: A2 | V29: 39 | W29: B1 | X29: 22 | Y29: C2 | Z29: 64 | AA29: B1 | AB29: 278 | AC29: 27 | AD29: =IF(AC29>45,"A1",IF(AC29>40,"A2",IF(AC29>35,"B1",IF(AC29>30,"B2",IF(AC29>25,"C1",IF(AC29>20,"C2",IF(AC29>15,"D1",IF(AC29>10,"D2",IF(AC29>5,"E1",IF(AC29>0,"E2")))))))))) -> C1 | AE29: 43 | AF29: A2 | AG29: 76 | AH29: A2 | AI29: 29 | AJ29: C1 | AK29: 38 | AL29: B1 | AM29: 65 | AN29: B1 | AO29: 274 | AP29: 45 | AQ29: A2 | AR29: 39 | AS29: B1 | AT29: 65 | AU29: B1 | AV29: 43 | AW29: A2 | AX29: 22 | AY29: B1 | AZ29: 46 | BA29: C1 | BB29: 260 | BC29: 29 | BD29: C1 | BE29: 28 | BF29: C1 | BG29: 65 | BH29: B1 | BI29: 30 | BJ29: C1 | BK29: 37 | BL29: C1 | BM29: 54 | BN29: B2 | BO29: 243 | BP29: 41 | BQ29: A2 | BR29: 22 | BS29: C2 | BT29: 65 | BU29: B1 | BV29: 22 | BW29: C2 | BX29: 40 | BY29: B1 | BZ29: 54 | CA29: B2 | CB29: 244
A30: 9521 | B30: RITIKA | C30: 35 | D30: B2 | E30: 40 | F30: B1 | G30: 63 | H30: B1 | I30: 41 | J30: A2 | K30: 43 | L30: A2 | M30: 76 | N30: A2 | O30: 298 | P30: 27 | Q30: C1 | R30: 28 | S30: C1 | T30: 54 | U30: B2 | V30: 40 | W30: B1 | X30: 33 | Y30: B2 | Z30: 56 | AA30: B2 | AB30: 238 | AC30: 45 | AD30: =IF(AC30>45,"A1",IF(AC30>40,"A2",IF(AC30>35,"B1",IF(AC30>30,"B2",IF(AC30>25,"C1",IF(AC30>20,"C2",IF(AC30>15,"D1",IF(AC30>10,"D2",IF(AC30>5,"E1",IF(AC30>0,"E2")))))))))) -> A2 | AE30: 44 | AF30: A2 | AG30: 65 | AH30: B1 | AI30: 39 | AJ30: B1 | AK30: 32 | AL30: B2 | AM30: 76 | AN30: A2 | AO30: 275 | AP30: 39 | AQ30: B1 | AR30: 38 | AS30: B1 | AT30: 76 | AU30: A2 | AV30: 44 | AW30: A2 | AX30: 33 | AY30: B1 | AZ30: 57 | BA30: B2 | BB30: 287 | BC30: 39 | BD30: B1 | BE30: 29 | BF30: C1 | BG30: 53 | BH30: B2 | BI30: 41 | BJ30: A2 | BK30: 37 | BL30: C1 | BM30: 65 | BN30: B1 | BO30: 264 | BP30: 39 | BQ30: B1 | BR30: 33 | BS30: B2 | BT30: 66 | BU30: B1 | BV30: 33 | BW30: B2 | BX30: 33 | BY30: B2 | BZ30: 76 | CA30: A2 | CB30: 280
A31: 9522 | B31: NITI | C31: 31 | D31: B2 | E31: 41 | F31: A2 | G31: 56 | H31: B2 | I31: 39 | J31: B1 | K31: 44 | L31: A2 | M31: 54 | N31: B2 | O31: 265 | P31: 45 | Q31: A2 | R31: 29 | S31: C1 | T31: 65 | U31: B1 | V31: 43 | W31: A2 | X31: 22 | Y31: C2 | Z31: 76 | AA31: A2 | AB31: 280 | AC31: 39 | AD31: =IF(AC31>45,"A1",IF(AC31>40,"A2",IF(AC31>35,"B1",IF(AC31>30,"B2",IF(AC31>25,"C1",IF(AC31>20,"C2",IF(AC31>15,"D1",IF(AC31>10,"D2",IF(AC31>5,"E1",IF(AC31>0,"E2")))))))))) -> B1 | AE31: 29 | AF31: C1 | AG31: 66 | AH31: B1 | AI31: 28 | AJ31: C1 | AK31: 43 | AL31: A2 | AM31: 45 | AN31: C1 | AO31: 276 | AP31: 37 | AQ31: B1 | AR31: 28 | AS31: C1 | AT31: 45 | AU31: C1 | AV31: 29 | AW31: C1 | AX31: 22 | AY31: C1 | AZ31: 36 | BA31: C2 | BB31: 197 | BC31: 45 | BD31: A2 | BE31: 39 | BF31: B1 | BG31: 76 | BH31: A2 | BI31: 12 | BJ31: D2 | BK31: 39 | BL31: B1 | BM31: 76 | BN31: A2 | BO31: 287 | BP31: 38 | BQ31: B1 | BR31: 22 | BS31: C2 | BT31: 65 | BU31: B1 | BV31: 22 | BW31: C2 | BX31: 39 | BY31: B1 | BZ31: 54 | CA31: B2 | CB31: 240
A32: 9523 | B32: AMISHA | C32: 28 | D32: C1 | E32: 37 | F32: B1 | G32: 75 | H32: A2 | I32: 38 | J32: B1 | K32: 29 | L32: C1 | M32: 76 | N32: A2 | O32: 283 | P32: 39 | Q32: B1 | R32: 39 | S32: B1 | T32: 76 | U32: A2 | V32: 48 | W32: A1 | X32: 30 | Y32: C1 | Z32: 87 | AA32: A1 | AB32: 319 | AC32: 37 | AD32: =IF(AC32>45,"A1",IF(AC32>40,"A2",IF(AC32>35,"B1",IF(AC32>30,"B2",IF(AC32>25,"C1",IF(AC32>20,"C2",IF(AC32>15,"D1",IF(AC32>10,"D2",IF(AC32>5,"E1",IF(AC32>0,"E2")))))))))) -> B1 | AE32: 39 | AF32: B1 | AG32: 65 | AH32: B1 | AI32: 23 | AJ32: C2 | AK32: 44 | AL32: A2 | AM32: 45 | AN32: C1 | AO32: 277 | AP32: 37 | AQ32: B1 | AR32: 29 | AS32: C1 | AT32: 45 | AU32: C1 | AV32: 30 | AW32: C1 | AX32: 30 | AY32: C1 | AZ32: 76 | BA32: A2 | BB32: 247 | BC32: 23 | BD32: C2 | BE32: 29 | BF32: C1 | BG32: 76 | BH32: A2 | BI32: 12 | BJ32: D2 | BK32: 46 | BL32: C1 | BM32: 64 | BN32: B1 | BO32: 250 | BP32: 28 | BQ32: C1 | BR32: 30 | BS32: C1 | BT32: 65 | BU32: B1 | BV32: 30 | BW32: C1 | BX32: 38 | BY32: B1 | BZ32: 76 | CA32: A2 | CB32: 267
A33: 9524 | B33: GOPIKA | C33: 38 | D33: B1 | E33: 39 | F33: B1 | G33: 67 | H33: B1 | I33: 28 | J33: C1 | K33: 39 | L33: B1 | M33: 54 | N33: B2 | O33: 265 | P33: 37 | Q33: B1 | R33: 29 | S33: C1 | T33: 45 | U33: C1 | V33: 29 | W33: C1 | X33: 25 | Y33: C2 | Z33: 54 | AA33: B2 | AB33: 219 | AC33: 37 | AD33: =IF(AC33>45,"A1",IF(AC33>40,"A2",IF(AC33>35,"B1",IF(AC33>30,"B2",IF(AC33>25,"C1",IF(AC33>20,"C2",IF(AC33>15,"D1",IF(AC33>10,"D2",IF(AC33>5,"E1",IF(AC33>0,"E2")))))))))) -> B1 | AE33: 28 | AF33: C1 | AG33: 65 | AH33: B1 | AI33: 45 | AJ33: A2 | AK33: 29 | AL33: C1 | AM33: 76 | AN33: A2 | AO33: 278 | AP33: 39 | AQ33: B1 | AR33: 39 | AS33: B1 | AT33: 76 | AU33: A2 | AV33: 41 | AW33: A2 | AX33: 25 | AY33: B1 | AZ33: 64 | BA33: B1 | BB33: 284 | BC33: 34 | BD33: B2 | BE33: 38 | BF33: B1 | BG33: 39 | BH33: C2 | BI33: 34 | BJ33: B2 | BK33: 49 | BL33: B1 | BM33: 67 | BN33: B1 | BO33: 261 | BP33: 29 | BQ33: C1 | BR33: 25 | BS33: C2 | BT33: 87 | BU33: A1 | BV33: 25 | BW33: C2 | BX33: 32 | BY33: B2 | BZ33: 54 | CA33: B2 | CB33: 252
A34: 9525 | B34: MAHIMA | C34: 14 | D34: D2 | E34: 32 | F34: B2 | G34: 46 | H34: C1 | I34: 29 | J34: C1 | K34: 28 | L34: C1 | M34: 65 | N34: B1 | O34: 214 | P34: 37 | Q34: B1 | R34: 38 | S34: B1 | T34: 45 | U34: C1 | V34: 38 | W34: B1 | X34: 32 | Y34: B2 | Z34: 86 | AA34: A1 | AB34: 276 | AC34: 39 | AD34: =IF(AC34>45,"A1",IF(AC34>40,"A2",IF(AC34>35,"B1",IF(AC34>30,"B2",IF(AC34>25,"C1",IF(AC34>20,"C2",IF(AC34>15,"D1",IF(AC34>10,"D2",IF(AC34>5,"E1",IF(AC34>0,"E2")))))))))) -> B1 | AE34: 23 | AF34: C2 | AG34: 87 | AH34: A1 | AI34: 39 | AJ34: B1 | AK34: 46 | AL34: A1 | AM34: 76 | AN34: A2 | AO34: 279 | AP34: 20 | AQ34: D1 | AR34: 29 | AS34: C1 | AT34: 76 | AU34: A2 | AV34: 12 | AW34: D2 | AX34: 32 | AY34: C1 | AZ34: 75 | BA34: A2 | BB34: 244 | BC34: 30 | BD34: C1 | BE34: 22 | BF34: C2 | BG34: 28 | BH34: D1 | BI34: 38 | BJ34: B1 | BK34: 28 | BL34: C2 | BM34: 76 | BN34: A2 | BO34: 222 | BP34: 39 | BQ34: B1 | BR34: 32 | BS34: B2 | BT34: 76 | BU34: A2 | BV34: 32 | BW34: B2 | BX34: 43 | BY34: A2 | BZ34: 65 | CA34: B1 | CB34: 287
A35: 9526 | B35: RAGINI | C35: 39 | D35: B1 | E35: 37 | F35: B1 | G35: 47 | H35: C1 | I35: 39 | J35: B1 | K35: 23 | L35: C2 | M35: 76 | N35: A2 | O35: 261 | P35: 39 | Q35: B1 | R35: 22 | S35: C2 | T35: 76 | U35: A2 | V35: 41 | W35: A2 | X35: 33 | Y35: B2 | Z35: 64 | AA35: B1 | AB35: 275 | AC35: 20 | AD35: =IF(AC35>45,"A1",IF(AC35>40,"A2",IF(AC35>35,"B1",IF(AC35>30,"B2",IF(AC35>25,"C1",IF(AC35>20,"C2",IF(AC35>15,"D1",IF(AC35>10,"D2",IF(AC35>5,"E1",IF(AC35>0,"E2")))))))))) -> D1 | AE35: 45 | AF35: A2 | AG35: 76 | AH35: A2 | AI35: 27 | AJ35: C1 | AK35: 45 | AL35: A2 | AM35: 55 | AN35: B2 | AO35: 280 | AP35: 48 | AQ35: A1 | AR35: 38 | AS35: B1 | AT35: 55 | AU35: B2 | AV35: 12 | AW35: D2 | AX35: 33 | AY35: B1 | AZ35: 63 | BA35: B1 | BB35: 249 | BC35: 41 | BD35: A2 | BE35: 33 | BF35: B2 | BG35: 38 | BH35: C2 | BI35: 29 | BJ35: C1 | BK35: 39 | BL35: B2 | BM35: 35 | BN35: C2 | BO35: 215 | BP35: 29 | BQ35: C1 | BR35: 33 | BS35: B2 | BT35: 54 | BU35: B2 | BV35: 33 | BW35: B2 | BX35: 44 | BY35: A2 | BZ35: 76 | CA35: A2 | CB35: 269
A36: 9527 | B36: SHRUTI | C36: 28 | D36: C1 | E36: 38 | F36: B1 | G36: 59 | H36: B2 | I36: 29 | J36: C1 | K36: 45 | L36: A2 | M36: 45 | N36: C1 | O36: 244 | P36: 20 | Q36: D1 | R36: 33 | S36: B2 | T36: 76 | U36: A2 | V36: 24 | W36: C2 | X36: 42 | Y36: A2 | Z36: 67 | AA36: B1 | AB36: 262 | AC36: 48 | AD36: =IF(AC36>45,"A1",IF(AC36>40,"A2",IF(AC36>35,"B1",IF(AC36>30,"B2",IF(AC36>25,"C1",IF(AC36>20,"C2",IF(AC36>15,"D1",IF(AC36>10,"D2",IF(AC36>5,"E1",IF(AC36>0,"E2")))))))))) -> A1 | AE36: 39 | AF36: B1 | AG36: 45 | AH36: C1 | AI36: 45 | AJ36: A2 | AK36: 23 | AL36: C2 | AM36: 76 | AN36: A2 | AO36: 281 | AP36: 39 | AQ36: B1 | AR36: 22 | AS36: C2 | AT36: 86 | AU36: A1 | AV36: 34 | AW36: B2 | AX36: 42 | AY36: C2 | AZ36: 76 | BA36: A2 | BB36: 299 | BC36: 12 | BD36: D2 | BE36: 22 | BF36: C2 | BG36: 47 | BH36: C1 | BI36: 38 | BJ36: B1 | BK36: 39 | BL36: C2 | BM36: 66 | BN36: B1 | BO36: 224 | BP36: 38 | BQ36: B1 | BR36: 42 | BS36: A2 | BT36: 76 | BU36: A2 | BV36: 42 | BW36: A2 | BX36: 29 | BY36: C1 | BZ36: 45 | CA36: C1 | CB36: 272
A37: 9528 | B37: SHAMA | C37: 24 | D37: C2 | E37: 20 | F37: D1 | G37: 69 | H37: B1 | I37: 38 | J37: B1 | K37: 39 | L37: B1 | M37: 45 | N37: C1 | O37: 235 | P37: 48 | Q37: A1 | R37: 22 | S37: C2 | T37: 55 | U37: B2 | V37: 42 | W37: A2 | X37: 43 | Y37: A2 | Z37: 76 | AA37: A2 | AB37: 286 | AC37: 39 | AD37: =IF(AC37>45,"A1",IF(AC37>40,"A2",IF(AC37>35,"B1",IF(AC37>30,"B2",IF(AC37>25,"C1",IF(AC37>20,"C2",IF(AC37>15,"D1",IF(AC37>10,"D2",IF(AC37>5,"E1",IF(AC37>0,"E2")))))))))) -> B1 | AE37: 27 | AF37: C1 | AG37: 23 | AH37: D1 | AI37: 39 | AJ37: B1 | AK37: 34 | AL37: B2 | AM37: 76 | AN37: A2 | AO37: 282 | AP37: 40 | AQ37: B1 | AR37: 33 | AS37: B2 | AT37: 65 | AU37: B1 | AV37: 38 | AW37: B1 | AX37: 43 | AY37: B2 | AZ37: 85 | BA37: A1 | BB37: 304 | BC37: 12 | BD37: D2 | BE37: 30 | BF37: C1 | BG37: 37 | BH37: C2 | BI37: 12 | BJ37: D2 | BK37: 29 | BL37: C1 | BM37: 35 | BN37: C2 | BO37: 155 | BP37: 22 | BQ37: C2 | BR37: 43 | BS37: A2 | BT37: 54 | BU37: B2 | BV37: 43 | BW37: A2 | BX37: 39 | BY37: B1 | BZ37: 45 | CA37: C1 | CB37: 246
A38: 9529 | B38: KOMAL | C38: 38 | D38: B1 | E38: 39 | F38: B1 | G38: 75 | H38: A2 | I38: 22 | J38: C2 | K38: 27 | L38: C1 | M38: 76 | N38: A2 | O38: 277 | P38: 39 | Q38: B1 | R38: 30 | S38: C1 | T38: 86 | U38: A1 | V38: 34 | W38: B2 | X38: 39 | Y38: B1 | Z38: 35 | AA38: C2 | AB38: 263 | AC38: 40 | AD38: =IF(AC38>45,"A1",IF(AC38>40,"A2",IF(AC38>35,"B1",IF(AC38>30,"B2",IF(AC38>25,"C1",IF(AC38>20,"C2",IF(AC38>15,"D1",IF(AC38>10,"D2",IF(AC38>5,"E1",IF(AC38>0,"E2")))))))))) -> B1 | AE38: 45 | AF38: A2 | AG38: 34 | AH38: C2 | AI38: 37 | AJ38: B1 | AK38: 30 | AL38: C1 | AM38: 65 | AN38: B1 | AO38: 283 | AP38: 43 | AQ38: A2 | AR38: 22 | AS38: C2 | AT38: 53 | AU38: B2 | AV38: 29 | AW38: C1 | AX38: 39 | AY38: C2 | AZ38: 63 | BA38: B1 | BB38: 249 | BC38: 34 | BD38: B2 | BE38: 25 | BF38: C2 | BG38: 28 | BH38: D1 | BI38: 12 | BJ38: D2 | BK38: 20 | BL38: C2 | BM38: 76 | BN38: A2 | BO38: 195 | BP38: 33 | BQ38: B2 | BR38: 39 | BS38: B1 | BT38: 65 | BU38: B1 | BV38: 39 | BW38: B1 | BX38: 28 | BY38: C1 | BZ38: 76 | CA38: A2 | CB38: 280
A39: 9530 | B39: KARTIKA | C39: 34 | D39: B2 | E39: 28 | F39: C1 | G39: 74 | H39: A2 | I39: 33 | J39: B2 | K39: 45 | L39: A2 | M39: 76 | N39: A2 | O39: 290 | P39: 40 | Q39: B1 | R39: 25 | S39: C2 | T39: 65 | U39: B1 | V39: 43 | W39: A2 | X39: 29 | Y39: C1 | Z39: 76 | AA39: A2 | AB39: 278 | AC39: 43 | AD39: =IF(AC39>45,"A1",IF(AC39>40,"A2",IF(AC39>35,"B1",IF(AC39>30,"B2",IF(AC39>25,"C1",IF(AC39>20,"C2",IF(AC39>15,"D1",IF(AC39>10,"D2",IF(AC39>5,"E1",IF(AC39>0,"E2")))))))))) -> A2 | AE39: 39 | AF39: B1 | AG39: 30 | AH39: D1 | AI39: 37 | AJ39: B1 | AK39: 41 | AL39: A2 | AM39: 66 | AN39: B1 | AO39: 284 | AP39: 48 | AQ39: A1 | AR39: 30 | AS39: C1 | AT39: 76 | AU39: A2 | AV39: 38 | AW39: B1 | AX39: 29 | AY39: C1 | AZ39: 56 | BA39: B2 | BB39: 277 | BC39: 38 | BD39: B1 | BE39: 32 | BF39: B2 | BG39: 28 | BH39: D1 | BI39: 34 | BJ39: B2 | BK39: 28 | BL39: B2 | BM39: 87 | BN39: A1 | BO39: 247 | BP39: 22 | BQ39: C2 | BR39: 29 | BS39: C1 | BU39: FALSE | BV39: 29 | BW39: C1 | BX39: 23 | BY39: C2 | BZ39: 76 | CA39: A2 | CB39: 179
A40: 9531 | B40: RAFIYA | C40: 30 | D40: C1 | E40: 38 | F40: B1 | G40: 68 | H40: B1 | I40: 22 | J40: C2 | K40: 39 | L40: B1 | M40: 55 | N40: B2 | O40: 252 | P40: 43 | Q40: A2 | R40: 32 | S40: B2 | T40: 53 | U40: B2 | V40: 34 | W40: B2 | X40: 20 | Y40: D1 | Z40: 87 | AA40: A1 | AB40: 269 | AC40: 48 | AD40: =IF(AC40>45,"A1",IF(AC40>40,"A2",IF(AC40>35,"B1",IF(AC40>30,"B2",IF(AC40>25,"C1",IF(AC40>20,"C2",IF(AC40>15,"D1",IF(AC40>10,"D2",IF(AC40>5,"E1",IF(AC40>0,"E2")))))))))) -> A1 | AE40: 37 | AF40: B1 | AG40: 41 | AH40: C1 | AI40: 39 | AJ40: B1 | AK40: 12 | AL40: D2 | AM40: 65 | AN40: B1 | AO40: 285 | AP40: 29 | AQ40: C1 | AR40: 25 | AS40: C2 | AT40: 76 | AU40: A2 | AV40: 35 | AW40: B2 | AX40: 20 | AY40: C2 | AZ40: 75 | BA40: A2 | BB40: 260 | BC40: 29 | BD40: C1 | BE40: 33 | BF40: B2 | BG40: 36 | BH40: C2 | BI40: 38 | BJ40: B1 | BK40: 28 | BL40: B2 | BM40: 54 | BN40: B2 | BO40: 218 | BP40: 30 | BQ40: C1 | BR40: 20 | BS40: D1 | BT40: 55 | BU40: B2 | BV40: 20 | BW40: D1 | BX40: 45 | BY40: A2 | BZ40: 55 | CA40: B2 | CB40: 225
A41: 9532 | B41: SHALINI | C41: 38 | D41: B1 | E41: 47 | F41: A1 | G41: 64 | H41: B1 | I41: 30 | J41: C1 | K41: 37 | L41: B1 | M41: 86 | N41: A1 | O41: 302 | P41: 48 | Q41: A1 | R41: 33 | S41: B2 | T41: 76 | U41: A2 | V41: 39 | W41: B1 | X41: 38 | Y41: B1 | Z41: 64 | AA41: B1 | AB41: 298 | AC41: 29 | AD41: =IF(AC41>45,"A1",IF(AC41>40,"A2",IF(AC41>35,"B1",IF(AC41>30,"B2",IF(AC41>25,"C1",IF(AC41>20,"C2",IF(AC41>15,"D1",IF(AC41>10,"D2",IF(AC41>5,"E1",IF(AC41>0,"E2")))))))))) -> C1 | AE41: 37 | AF41: B1 | AG41: 12 | AH41: D2 | AI41: 20 | AJ41: D1 | AK41: 12 | AL41: D2 | AM41: 65 | AN41: B1 | AO41: 286 | AP41: 38 | AQ41: B1 | AR41: 32 | AS41: B2 | AT41: 65 | AU41: B1 | AV41: 28 | AW41: C1 | AX41: 38 | AY41: =IF(AR41>45,"A1",IF(AR41>40,"A2",IF(AR41>35,"B1",IF(AR41>30,"B2",IF(AR41>25,"C1",IF(AR41>20,"C2",IF(AR41>15,"D1",IF(AR41>10,"D2",IF(AR41>5,"E1",IF(AR41>0,"E2")))))))))) -> B2 | AZ41: 67 | BA41: B1 | BB41: 268 | BC41: 38 | BD41: B1 | BE41: 42 | BF41: A2 | BG41: 35 | BH41: C2 | BI41: 29 | BJ41: C1 | BK41: 20 | BL41: A2 | BM41: 76 | BN41: A2 | BO41: 240 | BP41: 25 | BQ41: C2 | BR41: 38 | BS41: B1 | BT41: 76 | BU41: A2 | BV41: 38 | BW41: B1 | BX41: 39 | BY41: B1 | BZ41: 86 | CA41: A1 | CB41: 302
A42: 9533 | B42: ANUSHKA | C42: 32 | D42: B2 | E42: 37 | F42: B1 | G42: 67 | H42: B1 | I42: 25 | J42: C2 | K42: 37 | L42: B1 | M42: 65 | N42: B1 | O42: 263 | P42: 33 | Q42: =IF(P42>45,"A1",IF(P42>40,"A2",IF(P42>35,"B1",IF(P42>30,"B2",IF(P42>25,"C1",IF(P42>20,"C2",IF(P42>15,"D1",IF(P42>10,"D2",IF(P42>5,"E1",IF(P42>0,"E2")))))))))) -> B2 | R42: 42 | S42: A2 | T42: 76 | U42: A2 | V42: 29 | W42: C1 | X42: 37 | Y42: =IF(X42>45,"A1",IF(X42>40,"A2",IF(X42>35,"B1",IF(X42>30,"B2",IF(X42>25,"C1",IF(X42>20,"C2",IF(X42>15,"D1",IF(X42>10,"D2",IF(X42>5,"E1",IF(X42>0,"E2")))))))))) -> B1 | Z42: 67 | AA42: B1 | AB42: 284 | AC42: 38 | AD42: =IF(AC42>45,"A1",IF(AC42>40,"A2",IF(AC42>35,"B1",IF(AC42>30,"B2",IF(AC42>25,"C1",IF(AC42>20,"C2",IF(AC42>15,"D1",IF(AC42>10,"D2",IF(AC42>5,"E1",IF(AC42>0,"E2")))))))))) -> B1 | AE42: 39 | AF42: =IF(AE42>45,"A1",IF(AE42>40,"A2",IF(AE42>35,"B1",IF(AE42>30,"B2",IF(AE42>25,"C1",IF(AE42>20,"C2",IF(AE42>15,"D1",IF(AE42>10,"D2",IF(AE42>5,"E1",IF(AE42>0,"E2")))))))))) -> B1 | AG42: 12 | AH42: D2 | AI42: 48 | AJ42: A1 | AK42: 34 | AL42: B2 | AM42: 87 | AN42: A1 | AO42: 287 | AP42: 41 | AQ42: =IF(AP42>45,"A1",IF(AP42>40,"A2",IF(AP42>35,"B1",IF(AP42>30,"B2",IF(AP42>25,"C1",IF(AP42>20,"C2",IF(AP42>15,"D1",IF(AP42>10,"D2",IF(AP42>5,"E1",IF(AP42>0,"E2")))))))))) -> A2 | AR42: 33 | AS42: B2 | AT42: 66 | AU42: B1 | AV42: 40 | AW42: B1 | AX42: 37 | AY42: B2 | AZ42: 46 | BA42: C1 | BB42: 263 | BC42: 41 | BD42: A2 | BE42: 43 | BF42: A2 | BG42: 37 | BH42: C2 | BI42: 41 | BJ42: A2 | BK42: 19 | BL42: A2 | BM42: 54 | BN42: B2 | BO42: 235 | BP42: 32 | BQ42: B2 | BR42: 37 | BS42: B1 | BT42: 35 | BU42: C2 | BV42: 37 | BW42: B1 | BX42: 27 | BY42: C1 | BZ42: 65 | CA42: B1 | CB42: 233
A43: 9534 | B43: RITYA | C43: 39 | D43: B1 | E43: 28 | F43: C1 | G43: 65 | H43: B1 | I43: 32 | J43: B2 | K43: 39 | L43: B1 | M43: 53 | N43: B2 | O43: 256 | P43: 37 | Q43: B1 | R43: 43 | S43: A2 | T43: 65 | U43: B1 | V43: 42 | W43: A2 | X43: 33 | Y43: B2 | Z43: 76 | AA43: A2 | AB43: 296 | AC43: 41 | AD43: A2 | AE43: 20 | AF43: D1 | AG43: 34 | AH43: C2 | AI43: 41 | AJ43: A2 | AK43: 38 | AL43: B1 | AM43: 76 | AN43: A2 | AO43: 288 | AP43: 24 | AQ43: C2 | AR43: 42 | AS43: A2 | AT43: 65 | AU43: B1 | AV43: 33 | AW43: B2 | AX43: 33 | AY43: A2 | AZ43: 47 | BA43: C1 | BB43: 244 | BC43: 39 | BD43: B1 | BE43: 39 | BF43: B1 | BG43: 42 | BH43: C1 | BI43: 12 | BJ43: D2 | BK43: 29 | BL43: B1 | BM43: 76 | BN43: A2 | BO43: 237 | BP43: 33 | BQ43: B2 | BR43: 33 | BS43: B2 | BT43: 76 | BU43: A2 | BV43: 33 | BW43: B2 | BX43: 45 | BY43: A2 | BZ43: 53 | CA43: B2 | CB43: 273
A44: 9535 | B44: GAURI | C44: 35 | D44: B2 | E44: 28 | F44: C1 | G44: 75 | H44: A2 | I44: 33 | J44: B2 | K44: 20 | L44: D1 | M44: 76 | N44: A2 | O44: 267 | P44: 29 | Q44: C1 | R44: 39 | S44: B1 | T44: 66 | U44: B1 | V44: 45 | W44: A2 | X44: 46 | Y44: A1 | Z44: 35 | AA44: C2 | AB44: 260 | AC44: 24 | AD44: C2 | AE44: 48 | AF44: A1 | AG44: 38 | AH44: C2 | AI44: 22 | AJ44: C2 | AK44: 29 | AL44: C1 | AM44: 54 | AN44: B2 | AO44: 289 | AP44: 42 | AQ44: A2 | AR44: 43 | AS44: A2 | AT44: 85 | AU44: A1 | AV44: 39 | AW44: B1 | AX44: 46 | AY44: A2 | AZ44: 59 | BA44: B2 | BB44: 314 | BC44: 38 | BD44: B1 | BE44: 29 | BF44: C1 | BG44: 33 | BH44: C2 | BI44: 12 | BJ44: D2 | BK44: 28 | BL44: C1 | BM44: 54 | BN44: B2 | BO44: 194 | BP44: 42 | BQ44: A2 | BR44: 46 | BS44: A1 | BT44: 87 | BU44: A1 | BV44: 46 | BW44: A1 | BX44: 39 | BY44: B1 | BZ44: 76 | CA44: A2 | CB44: 336
A45: 9536 | B45: ADITI | C45: 23 | D45: C2 | E45: 36 | F45: B1 | G45: 76 | H45: A2 | I45: 42 | J45: A2 | K45: 48 | L45: A1 | M45: 76 | N45: A2 | O45: 301 | P45: 40 | Q45: B1 | R45: 29 | S45: C1 | T45: 65 | U45: B1 | V45: 23 | W45: C2 | X45: 49 | Y45: A1 | Z45: 76 | AA45: A2 | AB45: 282 | AC45: 42 | AD45: A2 | AE45: 39 | AF45: B1 | AG45: 29 | AH45: D1 | AI45: 30 | AJ45: C1 | AK45: 38 | AL45: B1 | AM45: 76 | AN45: A2 | AO45: 290 | AP45: 34 | AQ45: B2 | AR45: 39 | AS45: B1 | AT45: 26 | AU45: D1 | AV45: 38 | AW45: B1 | AX45: 49 | AY45: B1 | AZ45: 69 | BA45: B1 | BB45: 255 | BC45: 28 | BD45: C1 | BE45: 20 | BF45: D1 | BG45: 37 | BH45: C2 | BI45: 34 | BJ45: B2 | BK45: 33 | BL45: D1 | BM45: 65 | BN45: B1 | BO45: 217 | BP45: 43 | BQ45: A2 | BR45: 49 | BS45: A1 | BT45: 54 | BU45: B2 | BV45: 49 | BW45: A1 | BX45: 37 | BY45: B1 | BZ45: 76 | CA45: A2 | CB45: 308
A46: 9537 | B46: CHANCHAL BHOWRA | C46: 35 | D46: B2 | E46: 35 | F46: B2 | G46: 67 | H46: B1 | I46: 43 | J46: A2 | K46: 39 | L46: B1 | M46: 26 | N46: D1 | O46: 245 | P46: 41 | Q46: A2 | R46: 20 | S46: D1 | T46: 65 | U46: B1 | V46: 34 | W46: B2 | X46: 38 | Y46: B1 | Z46: 87 | AA46: A1 | AB46: 285 | AC46: 34 | AD46: B2 | AE46: 40 | AF46: B1 | AG46: 38 | AH46: C2 | AI46: 25 | AJ46: C2 | AK46: 41 | AL46: A2 | AM46: 54 | AN46: B2 | AO46: 291 | AP46: 43 | AQ46: A2 | AR46: 29 | AS46: C1 | AT46: 56 | AU46: B2 | AV46: 32 | AW46: B2 | AX46: 38 | AY46: C1 | AZ46: 75 | BA46: A2 | BB46: 273 | BC46: 29 | BD46: C1 | BE46: 38 | BF46: B1 | BG46: 37 | BH46: C2 | BI46: 38 | BJ46: B1 | BK46: 42 | BL46: B1 | BM46: 76 | BN46: A2 | BO46: 260 | BP46: 39 | BQ46: =IF(BP46>45,"A1",IF(BP46>40,"A2",IF(BP46>35,"B1",IF(BP46>30,"B2",IF(BP46>25,"C1",IF(BP46>20,"C2",IF(BP46>15,"D1",IF(BP46>10,"D2",IF(BP46>5,"E1",IF(BP46>0,"E2")))))))))) -> B1 | BR46: 38 | BS46: B1 | BT46: 76 | BU46: A2 | BV46: 38 | BW46: B1 | BX46: 37 | BY46: =IF(BX46>45,"A1",IF(BX46>40,"A2",IF(BX46>35,"B1",IF(BX46>30,"B2",IF(BX46>25,"C1",IF(BX46>20,"C2",IF(BX46>15,"D1",IF(BX46>10,"D2",IF(BX46>5,"E1",IF(BX46>0,"E2")))))))))) -> B1 | BZ46: 33 | CA46: C2 | CB46: 261
A47: 9538 | B47: SONAL | C47: 28 | D47: C1 | E47: 37 | F47: B1 | G47: 74 | H47: A2 | I47: 39 | J47: B1 | K47: 40 | L47: B1 | M47: 56 | N47: B2 | O47: 274 | P47: 37 | Q47: B1 | R47: 38 | S47: B1 | T47: 87 | U47: A1 | V47: 30 | W47: C1 | X47: 37 | Y47: B1 | Z47: 54 | AA47: B2 | AB47: 283 | AC47: 43 | AD47: A2 | AE47: 43 | AF47: A2 | AG47: 41 | AH47: C1 | AI47: 35 | AJ47: B2 | AK47: 39 | AL47: B1 | AM47: 65 | AN47: B1 | AO47: 292 | AP47: 34 | AQ47: B2 | AR47: 20 | AS47: D1 | AT47: 84 | AU47: A1 | AV47: 39 | AW47: B1 | AX47: 37 | AY47: D1 | AZ47: 74 | BA47: A2 | BB47: 288 | BC47: 39 | BD47: =IF(BC47>45,"A1",IF(BC47>40,"A2",IF(BC47>35,"B1",IF(BC47>30,"B2",IF(BC47>25,"C1",IF(BC47>20,"C2",IF(BC47>15,"D1",IF(BC47>10,"D2",IF(BC47>5,"E1",IF(BC47>0,"E2")))))))))) -> B1 | BE47: 37 | BF47: B1 | BG47: 39 | BH47: C2 | BI47: 29 | BJ47: C1 | BK47: 38 | BL47: =IF(BE47>45,"A1",IF(BE47>40,"A2",IF(BE47>35,"B1",IF(BE47>30,"B2",IF(BE47>25,"C1",IF(BE47>20,"C2",IF(BE47>15,"D1",IF(BE47>10,"D2",IF(BE47>5,"E1",IF(BE47>0,"E2")))))))))) -> B1 | BM47: 45 | BN47: C1 | BO47: 227 | BP47: 29 | BQ47: C1 | BR47: 37 | BS47: B1 | BT47: 54 | BU47: B2 | BV47: 37 | BW47: B1 | BX47: 39 | BY47: B1 | BZ47: 22 | CA47: D1 | CB47: 218
A48: 9539 | B48: TANYA GUPTA | C48: 40 | D48: B1 | E48: 42 | F48: A2 | G48: 84 | H48: A1 | I48: 29 | J48: C1 | K48: 43 | L48: A2 | M48: 84 | N48: A1 | O48: 322 | P48: 39 | Q48: B1 | R48: 37 | S48: B1 | T48: 76 | U48: A2 | V48: 41 | W48: A2 | X48: 38 | Y48: B1 | Z48: 76 | AA48: A2 | AB48: 307 | AC48: 34 | AD48: B2 | AE48: 48 | AF48: A1 | AG48: 39 | AH48: C2 | AI48: 28 | AJ48: C1 | AK48: 38 | AL48: B1 | AM48: 76 | AN48: A2 | AO48: 293 | AP48: 39 | AQ48: B1 | AR48: 38 | AS48: B1 | AT48: 75 | AU48: A2 | AV48: 29 | AW48: C1 | AX48: 38 | AY48: B1 | AZ48: 28 | BA48: D1 | BB48: 247 | BC48: 29 | BD48: C1 | BE48: 33 | BF48: B2 | BG48: 46 | BH48: C1 | BI48: 38 | BJ48: B1 | BK48: 36 | BL48: B2 | BM48: 45 | BN48: C1 | BO48: 227 | BP48: 20 | BQ48: D1 | BR48: 38 | BS48: B1 | BT48: 76 | BU48: A2 | BV48: 38 | BW48: B1 | BX48: 20 | BY48: D1 | BZ48: 30 | CA48: D1 | CB48: 222
A49: 9540 | B49: AKANSHA | C49: 33 | D49: B2 | E49: 33 | F49: B2 | G49: 76 | H49: A2 | I49: 20 | J49: D1 | K49: 48 | L49: A1 | M49: 75 | N49: A2 | O49: 285 | P49: 32 | Q49: B2 | R49: 33 | S49: B2 | T49: 55 | U49: B2 | V49: 12 | W49: D2 | X49: 27 | Y49: C1 | Z49: 54 | AA49: B2 | AB49: 213 | AC49: 39 | AD49: B1 | AE49: 29 | AF49: C1 | AG49: 38 | AH49: C2 | AI49: 40 | AJ49: B1 | AK49: 28 | AL49: C1 | AM49: 54 | AN49: B2 | AO49: 294 | AP49: 29 | AQ49: C1 | AR49: 37 | AS49: B1 | AT49: 47 | AU49: C1 | AV49: 20 | AW49: D1 | AX49: 27 | AY49: B1 | AZ49: 23 | BA49: D1 | BB49: 183 | BC49: 38 | BD49: B1 | BE49: 46 | BF49: A1 | BG49: 49 | BH49: C1 | BI49: 41 | BJ49: A2 | BK49: 29 | BL49: A1 | BM49: 76 | BN49: A2 | BO49: 279 | BP49: 38 | BQ49: B1 | BR49: 27 | BS49: C1 | BT49: 54 | BU49: B2 | BV49: 27 | BW49: C1 | BX49: 48 | BY49: A1 | BZ49: 25 | CA49: D1 | CB49: 219
A50: 9541 | B50: KARISHMA | C50: 39 | D50: B1 | E50: 37 | F50: B1 | G50: 85 | H50: A1 | I50: 38 | J50: B1 | K50: 29 | L50: C1 | M50: 47 | N50: C1 | O50: 275 | P50: 37 | Q50: B1 | R50: 46 | S50: A1 | T50: 77 | U50: A2 | V50: 12 | W50: D2 | X50: 47 | Y50: A1 | Z50: 76 | AA50: A2 | AB50: 295 | AC50: 29 | AD50: C1 | AE50: 38 | AF50: B1 | AG50: 86 | AH50: A1 | AI50: 33 | AJ50: B2 | AK50: 29 | AL50: C1 | AM50: 67 | AN50: B1 | AO50: 295 | AP50: 42 | AQ50: A2 | AR50: 33 | AS50: B2 | AT50: 37 | AU50: C2 | AV50: 38 | AW50: B1 | AX50: 47 | AY50: B2 | AZ50: 45 | BA50: C1 | BB50: 242 | BC50: 22 | BD50: C2 | BE50: 49 | BF50: A1 | BG50: 28 | BH50: D1 | BI50: 39 | BJ50: B1 | BK50: 31 | BL50: A1 | BM50: 76 | BN50: A2 | BO50: 245 | BP50: 37 | BQ50: B1 | BR50: 47 | BS50: A1 | BT50: 65 | BU50: B1 | BV50: 47 | BW50: A1 | BX50: 42 | BY50: A2 | BZ50: 64 | CA50: B1 | CB50: 302
A51: 9542 | B51: ALFISHA | C51: 38 | D51: B1 | E51: 37 | F51: B1 | G51: 73 | H51: A2 | I51: 37 | J51: B1 | K51: 38 | L51: B1 | M51: 37 | N51: C2 | O51: 260 | P51: 38 | Q51: B1 | R51: 49 | S51: A1 | T51: 76 | U51: A2 | V51: 34 | W51: B2 | X51: 39 | Y51: B1 | Z51: 54 | AA51: B2 | AB51: 290 | AC51: 42 | AD51: A2 | AE51: 41 | AF51: A2 | AG51: 64 | AH51: B1 | AI51: 39 | AJ51: B1 | AK51: 39 | AL51: B1 | AM51: 81 | AN51: A1 | AO51: 296 | AP51: 41 | AQ51: A2 | AR51: 46 | AS51: A1 | AT51: 36 | AU51: C2 | AV51: 37 | AW51: B1 | AX51: 39 | AY51: A1 | AZ51: 39 | BA51: C2 | BB51: 238 | BC51: 33 | BD51: B2 | BE51: 38 | BF51: B1 | BG51: 39 | BH51: C2 | BI51: 38 | BJ51: B1 | BK51: 36 | BL51: B1 | BM51: 55 | BN51: B2 | BO51: 239 | BP51: 33 | BQ51: B2 | BR51: 39 | BS51: B1 | BT51: 76 | BU51: A2 | BV51: 39 | BW51: B1 | BX51: 38 | BY51: B1 | BZ51: 67 | CA51: B1 | CB51: 292
A52: 9543 | B52: KHUSHI | C52: 32 | D52: B2 | E52: 39 | F52: B1 | G52: 86 | H52: A1 | I52: 33 | J52: B2 | K52: 41 | L52: A2 | M52: 36 | N52: C2 | O52: 267 | P52: 20 | Q52: D1 | R52: 38 | S52: B1 | T52: 54 | U52: B2 | V52: 38 | W52: B1 | X52: 42 | Y52: A2 | Z52: 65 | AA52: B1 | AB52: 257 | AC52: 45 | AD52: A2 | AE52: 24 | AF52: C2 | AG52: 67 | AH52: B1 | AI52: 38 | AJ52: B1 | AK52: 29 | AL52: C1 | AM52: 65 | AN52: B1 | AO52: 297 | AP52: 39 | AQ52: B1 | AR52: 49 | AS52: A1 | AT52: 46 | AU52: C1 | AV52: 33 | AW52: B2 | AX52: 24 | AY52: A1 | AZ52: 27 | BA52: D1 | BB52: 218 | BC52: 22 | BD52: C2 | BE52: 37 | BF52: B1 | BG52: 39 | BH52: C2 | BI52: 28 | BJ52: C1 | BK52: 28 | BL52: B1 | BM52: 86 | BN52: A1 | BO52: 240 | BP52: 46 | BQ52: A1 | BR52: 24 | BS52: C2 | BT52: 45 | BU52: C1 | BV52: 47 | BW52: A1 | BX52: 36 | BY52: B1 | BZ52: 76 | CA52: A2 | CB52: 274
A53: 9544 | B53: ANKITA | C53: 43 | D53: A2 | E53: 46 | F53: A1 | G53: 88 | H53: A1 | I53: 46 | J53: A1 | K53: 24 | L53: C2 | M53: 46 | N53: C1 | O53: 293 | P53: 39 | Q53: B1 | R53: 37 | S53: B1 | T53: 76 | U53: A2 | V53: 29 | W53: C1 | X53: 34 | Y53: B2 | Z53: 76 | AA53: A2 | AB53: 291 | AC53: 23 | AD53: C2 | AE53: 42 | AF53: A2 | AG53: 76 | AH53: A2 | AI53: 32 | AJ53: B2 | AK53: 38 | AL53: B1 | AM53: 76 | AN53: A2 | AO53: 298 | AP53: 38 | AQ53: B1 | AR53: 38 | AS53: B1 | AT53: 57 | AU53: B2 | AV53: 46 | AW53: A1 | AX53: 23 | AY53: B1 | AZ53: 45 | BA53: C1 | BB53: 247 | BC53: 28 | BD53: C1 | BE53: 38 | BF53: B1 | BG53: 29 | BH53: D1 | BI53: 29 | BJ53: C1 | BK53: 43 | BL53: B1 | BM53: 65 | BN53: B1 | BO53: 232 | BP53: 49 | BQ53: A1 | BR53: 38 | BS53: B1 | BT53: 45 | BU53: C1 | BV53: 39 | BW53: B1 | BX53: 29 | BY53: C1 | BZ53: 35 | CA53: C2 | CB53: 235
A54: 9545 | B54: KAREENA | C54: 44 | D54: A2 | E54: 49 | F54: A1 | G54: 86 | H54: A1 | I54: 49 | J54: A1 | K54: 42 | L54: A2 | M54: 57 | N54: B2 | O54: 327 | P54: 28 | Q54: C1 | R54: 38 | S54: B1 | T54: 43 | U54: C1 | V54: 38 | W54: B1 | X54: 43 | Y54: A2 | Z54: 45 | AA54: C1 | AB54: 235 | AC54: 34 | AD54: B2 | AE54: 34 | AF54: B2 | AG54: 35 | AH54: C2 | AI54: 43 | AJ54: A2 | AK54: 22 | AL54: C2 | AM54: 64 | AN54: B1 | AO54: 299 | AP54: 28 | AQ54: C1 | AR54: 37 | AS54: B1 | AT54: 36 | AU54: C2 | AV54: 49 | AW54: A1 | AX54: 25 | AY54: B1 | AZ54: 39 | BA54: C2 | BB54: 214 | BC54: 29 | BD54: C1 | BE54: 27 | BF54: C1 | BG54: 20 | BH54: D2 | BI54: 39 | BJ54: B1 | BK54: 35 | BL54: C1 | BM54: 53 | BN54: B2 | BO54: 203 | BP54: 38 | BQ54: B1 | BR54: 34 | BS54: B2 | BT54: 76 | BU54: A2 | BV54: 29 | BW54: C1 | BX54: 31 | BY54: B2 | BZ54: 76 | CA54: A2 | CB54: 284
A55: 9546 | B55: GARIMA | C55: 29 | D55: C1 | E55: 28 | F55: C1 | G55: 75 | H55: A2 | I55: 38 | J55: B1 | K55: 34 | L55: B2 | M55: 36 | N55: C2 | O55: 240 | P55: 38 | Q55: B1 | R55: 27 | S55: C1 | T55: 65 | U55: B1 | V55: 41 | W55: A2 | X55: 34 | Y55: B2 | Z55: 45 | AA55: C1 | AB55: 250 | AC55: 30 | AD55: C1 | AE55: 43 | AF55: A2 | AG55: 76 | AH55: A2 | AI55: 44 | AJ55: A2 | AK55: 33 | AL55: B2 | AM55: 56 | AN55: B2 | AO55: 300 | AP55: 29 | AQ55: C1 | AR55: 38 | AS55: B1 | AT55: 76 | AU55: A2 | AV55: 38 | AW55: B1 | AX55: 34 | AY55: B1 | AZ55: 37 | BA55: C2 | BB55: 252 | BC55: 39 | BD55: B1 | BE55: 47 | BF55: A1 | BG55: 28 | BH55: D1 | BI55: 28 | BJ55: C1 | BK55: 31 | BL55: A1 | BM55: 76 | BN55: A2 | BO55: 249 | BP55: 37 | BQ55: B1 | BR55: 38 | BS55: =IF(BR57>45,"A1",IF(BR57>40,"A2",IF(BR57>35,"B1",IF(BR57>30,"B2",IF(BR57>25,"C1",IF(BR57>20,"C2",IF(BR57>15,"D1",IF(BR57>10,"D2",IF(BR57>5,"E1",IF(BR57>0,"E2")))))))))) -> B1 | BT55: 76 | BU55: A2 | BV55: 20 | BW55: D1 | BX55: 36 | BY55: B1 | BZ55: 87 | CA55: A1 | CB55: =SUM(BP55,BR57,BT55,BV55,BX55,BZ55) -> 294
A56: 9547 | B56: JHALAK | C56: 20 | D56: D1 | E56: 39 | F56: B1 | G56: 46 | H56: C1 | I56: 37 | J56: B1 | K56: 43 | L56: A2 | M56: 76 | N56: A2 | O56: 261 | P56: 47 | Q56: A1 | R56: 47 | S56: A1 | T56: 34 | U56: C2 | V56: 39 | W56: B1 | X56: 39 | Y56: B1 | Z56: 76 | AA56: A2 | AB56: 282 | AC56: 41 | AD56: A2 | AE56: 34 | AF56: B2 | AG56: 87 | AH56: A1 | AI56: 43 | AJ56: A2 | AK56: 22 | AL56: C2 | AM56: 76 | AN56: A2 | AO56: 301 | AP56: 39 | AQ56: B1 | AR56: 27 | AS56: C1 | AT56: 64 | AU56: B1 | AV56: 37 | AW56: B1 | AX56: 30 | AY56: C1 | AZ56: 37 | BA56: C2 | BB56: 234 | BC56: 29 | BD56: C1 | BE56: 39 | BF56: B1 | BG56: 28 | BH56: D1 | BI56: 29 | BJ56: C1 | BK56: 28 | BL56: B1 | BM56: 76 | BN56: A2 | BO56: 229 | BP56: 38 | BQ56: B1 | BR56: 37 | BS56: =IF(BR58>45,"A1",IF(BR58>40,"A2",IF(BR58>35,"B1",IF(BR58>30,"B2",IF(BR58>25,"C1",IF(BR58>20,"C2",IF(BR58>15,"D1",IF(BR58>10,"D2",IF(BR58>5,"E1",IF(BR58>0,"E2")))))))))) -> B1 | BT56: 55 | BU56: B2 | BV56: 28 | BW56: C1 | BX56: 28 | BY56: C1 | BZ56: 54 | CA56: B2 | CB56: =SUM(BP56,BR58,BT56,BV56,BX56,BZ56) -> 240
A57: 9548 | B57: ANJALI | C57: 28 | D57: C1 | E57: 39 | F57: B1 | G57: 49 | H57: C1 | I57: 38 | J57: B1 | K57: 34 | L57: B2 | M57: 64 | N57: B1 | O57: 252 | P57: 37 | Q57: B1 | R57: 39 | S57: B1 | T57: 65 | U57: B1 | V57: 38 | W57: B1 | X57: 29 | Y57: C1 | Z57: 76 | AA57: A2 | AB57: 284 | AC57: 12 | AD57: D2 | AE57: 39 | AF57: B1 | AG57: 54 | AH57: B2 | AI57: 48 | AJ57: A1 | AK57: 33 | AL57: B2 | AM57: 87 | AN57: A1 | AO57: 302 | AP57: 29 | AQ57: C1 | AR57: 47 | AS57: A1 | AT57: 75 | AU57: A2 | AV57: 39 | AW57: B1 | AX57: 41 | AY57: A1 | AZ57: 39 | BA57: C2 | BB57: 270 | BC57: 38 | BD57: B1 | BE57: 42 | BF57: A2 | BG57: 20 | BH57: D2 | BI57: 39 | BJ57: B1 | BK57: 38 | BL57: A2 | BM57: 39 | BN57: C2 | BO57: 216 | BP57: 27 | BQ57: C1 | BR57: 38 | BS57: =IF(BR59>45,"A1",IF(BR59>40,"A2",IF(BR59>35,"B1",IF(BR59>30,"B2",IF(BR59>25,"C1",IF(BR59>20,"C2",IF(BR59>15,"D1",IF(BR59>10,"D2",IF(BR59>5,"E1",IF(BR59>0,"E2")))))))))) -> B1 | BT57: 76 | BU57: A2 | BV57: 28 | BW57: C1 | BX57: 43 | BY57: A2 | BZ57: 76 | CA57: A2 | CB57: =SUM(BP57,BR59,BT57,BV57,BX57,BZ57) -> 288
A58: 9549 | B58: NIDHI | C58: 37 | D58: B1 | E58: 29 | F58: C1 | G58: 47 | H58: C1 | I58: 27 | J58: C1 | K58: 39 | L58: B1 | M58: 75 | N58: A2 | O58: 254 | P58: 28 | Q58: C1 | R58: 35 | S58: B2 | T58: 86 | U58: A1 | V58: 28 | W58: C1 | X58: 42 | Y58: A2 | Z58: 55 | AA58: B2 | AB58: 274 | AC58: 12 | AD58: D2 | AE58: 29 | AF58: C1 | AG58: 76 | AH58: A2 | AI58: 29 | AJ58: C1 | AK58: 39 | AL58: B1 | AM58: 54 | AN58: B2 | AO58: 303 | AP58: 38 | AQ58: B1 | AR58: 39 | AS58: B1 | AT58: 63 | AU58: B1 | AV58: 38 | AW58: B1 | AX58: 12 | AY58: B1 | AZ58: 20 | BA58: D2 | BB58: 210 | BC58: 22 | BD58: C2 | BE58: 38 | BF58: B1 | BG58: 19 | BH58: D2 | BI58: 29 | BJ58: C1 | BK58: 14 | BL58: B1 | BM58: 28 | BN58: D1 | BO58: 150 | BP58: 47 | BQ58: A1 | BR58: 37 | BS58: =IF(BR60>45,"A1",IF(BR60>40,"A2",IF(BR60>35,"B1",IF(BR60>30,"B2",IF(BR60>25,"C1",IF(BR60>20,"C2",IF(BR60>15,"D1",IF(BR60>10,"D2",IF(BR60>5,"E1",IF(BR60>0,"E2")))))))))) -> C1 | BT58: 76 | BU58: A2 | BV58: 20 | BW58: D1 | BX58: 35 | BY58: B2 | BZ58: 54 | CA58: B2 | CB58: =SUM(BP58,BR60,BT58,BV58,BX58,BZ58) -> 259
A59: 9550 | B59: NAMRATA | C59: 34 | D59: B2 | E59: 20 | F59: D1 | G59: 68 | H59: B1 | I59: 47 | J59: A1 | K59: 29 | L59: C1 | M59: 63 | N59: B1 | O59: 261 | P59: 28 | Q59: C1 | R59: 42 | S59: A2 | T59: 65 | U59: B1 | V59: 29 | W59: C1 | X59: 38 | Y59: B1 | Z59: 76 | AA59: A2 | AB59: 278 | AC59: 34 | AD59: B2 | AE59: 42 | AF59: A2 | AG59: 54 | AH59: B2 | AI59: 38 | AJ59: B1 | AK59: 38 | AL59: B1 | AM59: 86 | AN59: A1 | AO59: 304 | AP59: 22 | AQ59: C2 | AR59: 38 | AS59: B1 | AT59: 76 | AU59: A2 | AV59: 37 | AW59: B1 | AX59: 12 | AY59: B1 | AZ59: 48 | BA59: C1 | BB59: 233 | BC59: 33 | BD59: B2 | BE59: 36 | BF59: B1 | BG59: 29 | BH59: D1 | BI59: 38 | BJ59: B1 | BK59: 39 | BL59: B1 | BM59: 38 | BN59: C2 | BO59: 213 | BP59: 39 | BQ59: B1 | BR59: 38 | BS59: =IF(BR61>45,"A1",IF(BR61>40,"A2",IF(BR61>35,"B1",IF(BR61>30,"B2",IF(BR61>25,"C1",IF(BR61>20,"C2",IF(BR61>15,"D1",IF(BR61>10,"D2",IF(BR61>5,"E1",IF(BR61>0,"E2")))))))))) -> A1 | BT59: 65 | BU59: B1 | BV59: 19 | BW59: D1 | BX59: 31 | BY59: B2 | BZ59: 76 | CA59: A2 | CB59: =SUM(BP59,BR61,BT59,BV59,BX59,BZ59) -> 277
A60: 9551 | B60: DIVYA TYAGI | C60: 36 | D60: B1 | E60: 28 | F60: C1 | G60: 69 | H60: B1 | I60: 39 | J60: B1 | K60: 42 | L60: A2 | M60: 76 | N60: A2 | O60: 290 | P60: 36 | Q60: B1 | R60: 38 | S60: B1 | T60: 65 | U60: B1 | V60: 39 | W60: B1 | X60: 36 | Y60: B1 | Z60: 76 | AA60: A2 | AB60: 290 | AC60: 38 | AD60: B1 | AE60: 34 | AF60: B2 | AG60: 76 | AH60: A2 | AI60: 41 | AJ60: A2 | AK60: 32 | AL60: B2 | AM60: 64 | AN60: B1 | AO60: 305 | AP60: 33 | AQ60: B2 | AR60: 37 | AS60: B1 | AT60: 85 | AU60: A1 | AV60: 33 | AW60: B2 | AX60: 34 | AY60: B1 | AZ60: 39 | BA60: C2 | BB60: 261 | BC60: 22 | BD60: C2 | BE60: 29 | BF60: C1 | BG60: 28 | BH60: D1 | BI60: 22 | BJ60: C2 | BK60: 28 | BL60: C1 | BM60: 47 | BN60: C1 | BO60: 176 | BP60: 33 | BQ60: B2 | BR60: 27 | BS60: =IF(BR62>45,"A1",IF(BR62>40,"A2",IF(BR62>35,"B1",IF(BR62>30,"B2",IF(BR62>25,"C1",IF(BR62>20,"C2",IF(BR62>15,"D1",IF(BR62>10,"D2",IF(BR62>5,"E1",IF(BR62>0,"E2")))))))))) -> B1 | BT60: 66 | BU60: B1 | BV60: 29 | BW60: C1 | BX60: 28 | BY60: C1 | BZ60: 54 | CA60: B2 | CB60: =SUM(BP60,BR62,BT60,BV60,BX60,BZ60) -> 249
A61: 9552 | B61: PARUL | C61: 38 | D61: B1 | E61: 28 | F61: C1 | G61: 70 | H61: B1 | I61: 38 | J61: B1 | K61: 38 | L61: B1 | M61: 85 | N61: A1 | O61: 297 | P61: 35 | Q61: B2 | R61: 39 | S61: B1 | T61: 76 | U61: A2 | V61: 29 | W61: C1 | X61: 29 | Y61: C1 | Z61: 65 | AA61: B1 | AB61: 273 | AC61: 29 | AD61: C1 | AE61: 30 | AF61: C1 | AG61: 54 | AH61: B2 | AI61: 24 | AJ61: C2 | AK61: 43 | AL61: A2 | AM61: 67 | AN61: B1 | AO61: 306 | AP61: 22 | AQ61: C2 | AR61: 33 | AS61: B2 | AT61: 63 | AU61: B1 | AV61: 46 | AW61: A1 | AX61: 38 | AY61: B2 | AZ61: 40 | BA61: C2 | BB61: 242 | BC61: 30 | BD61: C1 | BE61: 31 | BF61: B2 | BG61: 33 | BH61: C2 | BI61: 33 | BJ61: B2 | BK61: 24 | BL61: B2 | BM61: 37 | BN61: C2 | BO61: 188 | BP61: 46 | BQ61: A1 | BR61: 47 | BS61: =IF(BR63>45,"A1",IF(BR63>40,"A2",IF(BR63>35,"B1",IF(BR63>30,"B2",IF(BR63>25,"C1",IF(BR63>20,"C2",IF(BR63>15,"D1",IF(BR63>10,"D2",IF(BR63>5,"E1",IF(BR63>0,"E2")))))))))) -> C2 | BT61: 65 | BU61: B1 | BV61: 28 | BW61: C1 | BX61: 29 | BY61: C1 | BZ61: 65 | CA61: B1 | CB61: =SUM(BP61,BR63,BT61,BV61,BX61,BZ61) -> 257
A62: 9553 | B62: MUSKAN | C62: 29 | D62: C1 | E62: 20 | F62: D1 | G62: 68 | H62: B1 | I62: 35 | J62: B2 | K62: 36 | L62: B1 | M62: 63 | N62: B1 | O62: 251 | P62: 37 | Q62: B1 | R62: 20 | S62: D1 | T62: 87 | U62: A1 | V62: 29 | W62: C1 | X62: 31 | Y62: B2 | Z62: 66 | AA62: B1 | AB62: 270 | AC62: 38 | AD62: B1 | AE62: 41 | AF62: A2 | AG62: 65 | AH62: B1 | AI62: 44 | AJ62: A2 | AK62: 44 | AL62: A2 | AM62: 76 | AN62: A2 | AO62: 307 | AP62: 30 | AQ62: C1 | AR62: 46 | AS62: A1 | AT62: 56 | AU62: B2 | AV62: 38 | AW62: B1 | AX62: 29 | AY62: A1 | AZ62: 43 | BA62: C1 | BB62: 242 | BC62: 25 | BD62: C2 | BE62: 36 | BF62: B1 | BG62: 76 | BH62: A2 | BI62: 22 | BJ62: C2 | BK62: 38 | BL62: B1 | BM62: 65 | BN62: B1 | BO62: 262 | BP62: 49 | BQ62: A1 | BR62: 39 | BS62: =IF(BR64>45,"A1",IF(BR64>40,"A2",IF(BR64>35,"B1",IF(BR64>30,"B2",IF(BR64>25,"C1",IF(BR64>20,"C2",IF(BR64>15,"D1",IF(BR64>10,"D2",IF(BR64>5,"E1",IF(BR64>0,"E2")))))))))) -> B1 | BT62: 65 | BU62: B1 | BV62: 33 | BW62: B2 | BX62: 20 | BY62: D1 | BZ62: 76 | CA62: A2 | CB62: =SUM(BP62,BR64,BT62,BV62,BX62,BZ62) -> 281
A63: 9554 | B63: SHRUTI | C63: 39 | D63: B1 | E63: 19 | F63: D1 | G63: 75 | H63: A2 | I63: 45 | J63: A2 | K63: 29 | L63: C1 | M63: 56 | N63: B2 | O63: 263 | P63: 42 | Q63: A2 | R63: 38 | S63: B1 | T63: 65 | U63: B1 | V63: 43 | W63: A2 | X63: 36 | Y63: B1 | Z63: 65 | AA63: B1 | AB63: 289 | AC63: 34 | AD63: B2 | AE63: 12 | AF63: D2 | AG63: 76 | AH63: A2 | AI63: 43 | AJ63: A2 | AK63: 29 | AL63: C1 | AM63: 35 | AN63: C2 | AO63: 308 | AP63: 25 | AQ63: C2 | AR63: 38 | AS63: B1 | AT63: 75 | AU63: A2 | AV63: 27 | AW63: C1 | AX63: 38 | AY63: B1 | AZ63: 48 | BA63: C1 | BB63: 251 | BC63: 35 | BD63: B2 | BE63: 28 | BF63: C1 | BG63: 87 | BH63: A1 | BI63: 30 | BJ63: C1 | BK63: 34 | BL63: C1 | BM63: 76 | BN63: A2 | BO63: 290 | BP63: 38 | BQ63: B1 | BR63: 24 | BS63: =IF(BR65>45,"A1",IF(BR65>40,"A2",IF(BR65>35,"B1",IF(BR65>30,"B2",IF(BR65>25,"C1",IF(BR65>20,"C2",IF(BR65>15,"D1",IF(BR65>10,"D2",IF(BR65>5,"E1",IF(BR65>0,"E2")))))))))) -> B2 | BT63: 87 | BU63: A1 | BV63: 28 | BW63: C1 | BX63: 28 | BY63: C1 | BZ63: 53 | CA63: B2 | CB63: =SUM(BP63,BR65,BT63,BV63,BX63,BZ63) -> 268
A64: 9555 | B64: SHAHROJ | D64: FALSE | E64: 29 | F64: C1 | G64: 64 | H64: B1 | I64: 3 | J64: E2 | K64: 31 | L64: B2 | M64: 75 | N64: A2 | O64: 202 | P64: 27 | Q64: C1 | R64: 27 | S64: C1 | T64: 54 | U64: B2 | V64: 34 | W64: B2 | X64: 28 | Y64: C1 | Z64: 65 | AA64: B1 | AB64: 235 | AC64: 39 | AD64: B1 | AE64: 12 | AF64: D2 | AG64: 86 | AH64: A1 | AI64: 48 | AJ64: A1 | AK64: 39 | AL64: B1 | AM64: 76 | AN64: A2 | AO64: 309 | AP64: 32 | AQ64: B2 | AR64: 27 | AS64: C1 | AT64: 67 | AU64: B1 | AV64: 38 | AW64: B1 | AX64: 33 | AY64: C1 | AZ64: 82 | BA64: A1 | BB64: 279 | BC64: 28 | BD64: C1 | BE64: 43 | BF64: A2 | BG64: 54 | BH64: B2 | BI64: 25 | BJ64: C2 | BK64: 43 | BL64: A2 | BM64: 45 | BN64: C1 | BO64: 238 | BP64: 37 | BQ64: B1 | BR64: 38 | BS64: =IF(#REF!>45,"A1",IF(#REF!>40,"A2",IF(#REF!>35,"B1",IF(#REF!>30,"B2",IF(#REF!>25,"C1",IF(#REF!>20,"C2",IF(#REF!>15,"D1",IF(#REF!>10,"D2",IF(#REF!>5,"E1",IF(#REF!>0,"E2")))))))))) ->  | BT64: 76 | BU64: A2 | BV64: 28 | BW64: C1 | BX64: 28 | BY64: C1 | BZ64: 76 | CA64: A2 | CB64: =SUM(BP64,#REF!,BT64,BV64,BX64,BZ64) -> 
A65: 9556 | B65: TWINKLE | C65: 38 | D65: B1 | E65: 28 | F65: C1 | G65: 76 | H65: A2 | I65: 45 | J65: A2 | K65: 36 | L65: B1 | M65: 67 | N65: B1 | O65: 290 | P65: 47 | Q65: A1 | R65: 44 | S65: A2 | T65: 54 | U65: B2 | V65: 39 | W65: B1 | X65: 34 | Y65: B2 | Z65: 87 | AA65: A1 | AB65: 305 | AC65: 29 | AD65: C1 | AE65: 34 | AF65: B2 | AG65: 64 | AH65: B1 | AI65: 29 | AJ65: C1 | AK65: 28 | AL65: C1 | AM65: 87 | AN65: A1 | AO65: 310 | AP65: 33 | AQ65: B2 | AR65: 47 | AS65: A1 | AT65: 46 | AU65: C1 | AV65: 38 | AW65: B1 | AX65: 46 | AY65: A1 | AZ65: 75 | BA65: A2 | BB65: 285 | BC65: 40 | BD65: B1 | BE65: 35 | BF65: B2 | BG65: 76 | BH65: A2 | BI65: 35 | BJ65: B2 | BK65: 23 | BL65: B2 | BM65: 45 | BN65: C1 | BO65: 254 | BP65: 38 | BQ65: B1 | BR65: 34 | BS65: =IF(#REF!>45,"A1",IF(#REF!>40,"A2",IF(#REF!>35,"B1",IF(#REF!>30,"B2",IF(#REF!>25,"C1",IF(#REF!>20,"C2",IF(#REF!>15,"D1",IF(#REF!>10,"D2",IF(#REF!>5,"E1",IF(#REF!>0,"E2")))))))))) ->  | BT65: 54 | BU65: B2 | BV65: 20 | BW65: D1 | BX65: 20 | BY65: D1 | BZ65: 76 | CA65: A2 | CB65: =SUM(BP65,#REF!,BT65,BV65,BX65,BZ65) -> 
A66: 9557 | B66: SAKSHI | C66: 34 | D66: B2 | E66: 33 | F66: B2 | G66: 78 | H66: A2 | I66: 27 | J66: C1 | K66: 28 | L66: C1 | M66: 46 | N66: C1 | O66: 246 | P66: 39 | Q66: B1 | R66: 34 | S66: =IF(R66>45,"A1",IF(R66>40,"A2",IF(R66>35,"B1",IF(R66>30,"B2",IF(R66>25,"C1",IF(R66>20,"C2",IF(R66>15,"D1",IF(R66>10,"D2",IF(R66>5,"E1",IF(R66>0,"E2")))))))))) -> B2 | T66: 67 | U66: B1 | V66: 29 | W66: =IF(V66>45,"A1",IF(V66>40,"A2",IF(V66>35,"B1",IF(V66>30,"B2",IF(V66>25,"C1",IF(V66>20,"C2",IF(V66>15,"D1",IF(V66>10,"D2",IF(V66>5,"E1",IF(V66>0,"E2")))))))))) -> C1 | X66: 44 | Y66: A2 | Z66: 76 | AA66: A2 | AB66: 289 | AC66: 42 | AD66: A2 | AE66: 32 | AF66: B2 | AG66: 67 | AH66: B1 | AI66: 38 | AJ66: =IF(AI66>45,"A1",IF(AI66>40,"A2",IF(AI66>35,"B1",IF(AI66>30,"B2",IF(AI66>25,"C1",IF(AI66>20,"C2",IF(AI66>15,"D1",IF(AI66>10,"D2",IF(AI66>5,"E1",IF(AI66>0,"E2")))))))))) -> B1 | AK66: 45 | AL66: A2 | AM66: 64 | AN66: B1 | AO66: 311 | AP66: 42 | AQ66: A2 | AR66: 44 | AS66: =IF(AR66>45,"A1",IF(AR66>40,"A2",IF(AR66>35,"B1",IF(AR66>30,"B2",IF(AR66>25,"C1",IF(AR66>20,"C2",IF(AR66>15,"D1",IF(AR66>10,"D2",IF(AR66>5,"E1",IF(AR66>0,"E2")))))))))) -> A2 | AT66: 47 | AU66: C1 | AV66: 38 | AW66: =IF(AV66>45,"A1",IF(AV66>40,"A2",IF(AV66>35,"B1",IF(AV66>30,"B2",IF(AV66>25,"C1",IF(AV66>20,"C2",IF(AV66>15,"D1",IF(AV66>10,"D2",IF(AV66>5,"E1",IF(AV66>0,"E2")))))))))) -> B1 | AX66: 38 | AY66: A2 | AZ66: 73 | BA66: A2 | BB66: 282 | BC66: 33 | BD66: B2 | BE66: 31 | BF66: B2 | BG66: 54 | BH66: B2 | BI66: 43 | BJ66: A2 | BK66: 34 | BL66: B2 | BM66: 76 | BN66: A2 | BO66: 271 | BP66: 27 | BQ66: C1 | BR66: 44 | BS66: =IF(BR66>45,"A1",IF(BR66>40,"A2",IF(BR66>35,"B1",IF(BR66>30,"B2",IF(BR66>25,"C1",IF(BR66>20,"C2",IF(BR66>15,"D1",IF(BR66>10,"D2",IF(BR66>5,"E1",IF(BR66>0,"E2")))))))))) -> A2 | BT66: 76 | BU66: A2 | BV66: 19 | BW66: =IF(BV66>45,"A1",IF(BV66>40,"A2",IF(BV66>35,"B1",IF(BV66>30,"B2",IF(BV66>25,"C1",IF(BV66>20,"C2",IF(BV66>15,"D1",IF(BV66>10,"D2",IF(BV66>5,"E1",IF(BV66>0,"E2")))))))))) -> D1 | BX66: 46 | BY66: =IF(BX66>45,"A1",IF(BX66>40,"A2",IF(BX66>35,"B1",IF(BX66>30,"B2",IF(BX66>25,"C1",IF(BX66>20,"C2",IF(BX66>15,"D1",IF(BX66>10,"D2",IF(BX66>5,"E1",IF(BX66>0,"E2")))))))))) -> A1 | BZ66: 39 | CA66: C2 | CB66: 251
AS67: 59 | BA67: 39 | BS67: 54
AT68: 69 | BT68: 65
AT69: 75 | BC69: 32
AT70: 74 | BC70: 43
BC71: 44
